Department Family,Entity,Date Paid,Expense Type,Expense Area,Supplier,Transaction Number,Amount (�),Supplier VAT Registration Number
BIS,Met Office,2020-05-14,03 STAFF COSTS T&S,OPERATIONS,AIRPORT CAR RENTALS LTD,442327,320,-
BIS,Met Office,2020-05-21,03 STAFF COSTS T&S,OPERATIONS,CARTUS FINANCING LTD,442168,80.02,768489458
BIS,Met Office,2020-05-21,03 STAFF COSTS T&S,OPERATIONS,CARTUS LTD,442447,-180,768489458
BIS,Met Office,2020-05-21,03 STAFF COSTS T&S,OPERATIONS,CARTUS LTD,442401,110,768489458
BIS,Met Office,2020-05-21,03 STAFF COSTS T&S,OPERATIONS,CARTUS LTD,442403,110,768489458
BIS,Met Office,2020-05-21,03 STAFF COSTS T&S,OPERATIONS,CARTUS LTD,442405,110,768489458
BIS,Met Office,2020-05-21,03 STAFF COSTS T&S,OPERATIONS,CARTUS LTD,442406,110,768489458
BIS,Met Office,2020-05-21,03 STAFF COSTS T&S,OPERATIONS,CARTUS LTD,442407,110,768489458
BIS,Met Office,2020-05-21,03 STAFF COSTS T&S,OPERATIONS,CARTUS LTD,442448,110,768489458
BIS,Met Office,2020-05-28,03 STAFF COSTS T&S,OPERATIONS,CARTUS LTD,442654,110,768489458
BIS,Met Office,2020-05-21,03 STAFF COSTS T&S,OPERATIONS,CARTUS LTD,442450,274,768489458
BIS,Met Office,2020-05-21,03 STAFF COSTS T&S,OPERATIONS,CARTUS LTD,442452,385,768489458
BIS,Met Office,2020-05-21,03 STAFF COSTS T&S,OPERATIONS,CARTUS LTD,442444,480,768489458
BIS,Met Office,2020-05-21,03 STAFF COSTS T&S,OPERATIONS,CARTUS LTD,442451,1478.74,768489458
BIS,Met Office,2020-05-28,03 STAFF COSTS T&S,OPERATIONS,CARTUS LTD,442655,2138.11,768489458
BIS,Met Office,2020-05-07,03 STAFF COSTS T&S,OPERATIONS,CHARLIE'S TRAVEL LTD,442030,117,783848277
BIS,Met Office,2020-05-07,03 STAFF COSTS T&S,OPERATIONS,CHARLIE'S TRAVEL LTD,442030,665.5,783848277
BIS,Met Office,2020-05-21,03 STAFF COSTS T&S,CHIEF FINANCIAL OFFICER,ENTERPRISE RENT A CAR UK LTD,442618,337.12,215557314
BIS,Met Office,2020-05-14,03 STAFF COSTS T&S,CHIEF FINANCIAL OFFICER,ENTERPRISE RENT A CAR UK LTD,442165,426.88,215557314
BIS,Met Office,2020-05-07,03 STAFF COSTS T&S,CHIEF FINANCIAL OFFICER,ENTERPRISE RENT A CAR UK LTD,442053,430.06,215557314
BIS,Met Office,2020-05-21,03 STAFF COSTS T&S,CHIEF FINANCIAL OFFICER,ENTERPRISE RENT A CAR UK LTD,442611,437.16,215557314
BIS,Met Office,2020-05-21,03 STAFF COSTS T&S,OPERATIONS,FALKLAND ISLAND COMPANY LTD,442597,700,N/A
BIS,Met Office,2020-05-21,03 STAFF COSTS T&S,OPERATIONS,FALKLAND ISLAND COMPANY LTD,442598,700,N/A
BIS,Met Office,2020-05-21,03 STAFF COSTS T&S,OPERATIONS,FALKLAND ISLAND COMPANY LTD,442601,700,N/A
BIS,Met Office,2020-05-07,03 STAFF COSTS T&S,SCIENCE,HITACHI CAPITAL VEHICLE SOLUTIONS,442063,295.93,GB 823 8248 22
BIS,Met Office,2020-05-07,03 STAFF COSTS T&S,OPERATIONS,HITACHI CAPITAL VEHICLE SOLUTIONS,442063,591.86,GB 823 8248 22
BIS,Met Office,2020-05-07,03 STAFF COSTS T&S,OPERATIONS,HITACHI CAPITAL VEHICLE SOLUTIONS,442063,1479.65,GB 823 8248 22
BIS,Met Office,2020-05-07,03 STAFF COSTS T&S,SCIENCE,HITACHI CAPITAL VEHICLE SOLUTIONS,442063,3091.44,GB 823 8248 22
BIS,Met Office,2020-05-07,03 STAFF COSTS T&S,OPERATIONS,HITACHI CAPITAL VEHICLE SOLUTIONS,442063,6182.88,GB 823 8248 22
BIS,Met Office,2020-05-07,03 STAFF COSTS T&S,OPERATIONS,HITACHI CAPITAL VEHICLE SOLUTIONS,442063,15457.2,GB 823 8248 22
BIS,Met Office,2020-05-07,03 STAFF COSTS T&S,CHIEF FINANCIAL OFFICER,LEASEDRIVE RENTAL MANAGEMENT LTD,442046,376.26,733546040
BIS,Met Office,2020-05-21,03 STAFF COSTS T&S,GOVERNMENT SERVICES,MAWASEM LTD,442569,142.09,197694731
BIS,Met Office,2020-05-21,04 CONTRACTORS,STRATEGIC INVESTMENT,BJSS LIMITED,442430,17000,613295452
BIS,Met Office,2020-05-21,04 CONTRACTORS,TECHNOLOGY,FDM GROUP LIMITED,442423,5130,583540529
BIS,Met Office,2020-05-21,04 CONTRACTORS,TECHNOLOGY,FDM GROUP LIMITED,442427,5130,583540529
BIS,Met Office,2020-05-21,04 CONTRACTORS,TECHNOLOGY,FDM GROUP LIMITED,442428,5400,583540529
BIS,Met Office,2020-05-21,04 CONTRACTORS,TECHNOLOGY,FDM GROUP LIMITED,442429,5400,583540529
BIS,Met Office,2020-05-21,04 CONTRACTORS,TECHNOLOGY,FDM GROUP LIMITED,442425,5940,583540529
BIS,Met Office,2020-05-28,04 CONTRACTORS,TECHNOLOGY,GCS IT RECRUITMENT SPECIALISTS LTD,441653,-7500,896156575
BIS,Met Office,2020-05-14,04 CONTRACTORS,TECHNOLOGY,GCS IT RECRUITMENT SPECIALISTS LTD,442301,8190,896156575
BIS,Met Office,2020-05-21,04 CONTRACTORS,TECHNOLOGY,GCS IT RECRUITMENT SPECIALISTS LTD,442433,15000,896156575
BIS,Met Office,2020-05-28,04 CONTRACTORS,TECHNOLOGY,GCS IT RECRUITMENT SPECIALISTS LTD,441335,20250,896156575
BIS,Met Office,2020-05-21,04 CONTRACTORS,STRATEGIC INVESTMENT,HAYS SPECIALIST RECRUITMENT LTD,442369,60.4,773695871
BIS,Met Office,2020-05-07,04 CONTRACTORS,GOVERNMENT SERVICES,HAYS SPECIALIST RECRUITMENT LTD,441855,183.08,773695871
BIS,Met Office,2020-05-07,04 CONTRACTORS,GOVERNMENT SERVICES,HAYS SPECIALIST RECRUITMENT LTD,441856,183.08,773695871
BIS,Met Office,2020-05-14,04 CONTRACTORS,GOVERNMENT SERVICES,HAYS SPECIALIST RECRUITMENT LTD,442159,183.08,773695871
BIS,Met Office,2020-05-21,04 CONTRACTORS,GOVERNMENT SERVICES,HAYS SPECIALIST RECRUITMENT LTD,442397,183.08,773695871
BIS,Met Office,2020-05-28,04 CONTRACTORS,GOVERNMENT SERVICES,HAYS SPECIALIST RECRUITMENT LTD,442744,183.08,773695871
BIS,Met Office,2020-05-21,04 CONTRACTORS,GOVERNMENT SERVICES,HAYS SPECIALIST RECRUITMENT LTD,442398,366.16,773695871
BIS,Met Office,2020-05-14,04 CONTRACTORS,STRATEGIC INVESTMENT,HAYS SPECIALIST RECRUITMENT LTD,442154,422.8,773695871
BIS,Met Office,2020-05-28,04 CONTRACTORS,STRATEGIC INVESTMENT,HAYS SPECIALIST RECRUITMENT LTD,442748,422.8,773695871
BIS,Met Office,2020-05-21,04 CONTRACTORS,TECHNOLOGY,HAYS SPECIALIST RECRUITMENT LTD,442443,498.3,773695871
BIS,Met Office,2020-05-14,04 CONTRACTORS,STRATEGIC INVESTMENT,HAYS SPECIALIST RECRUITMENT LTD,442158,528.5,773695871
BIS,Met Office,2020-05-21,04 CONTRACTORS,CORPORATE,HAYS SPECIALIST RECRUITMENT LTD,442396,533.72,773695871
BIS,Met Office,2020-05-21,04 CONTRACTORS,TECHNOLOGY,HAYS SPECIALIST RECRUITMENT LTD,442431,588.9,773695871
BIS,Met Office,2020-05-28,04 CONTRACTORS,TECHNOLOGY,HAYS SPECIALIST RECRUITMENT LTD,442746,588.9,773695871
BIS,Met Office,2020-05-07,04 CONTRACTORS,TECHNOLOGY,HAYS SPECIALIST RECRUITMENT LTD,441886,604,773695871
BIS,Met Office,2020-05-07,04 CONTRACTORS,CORPORATE,HAYS SPECIALIST RECRUITMENT LTD,441887,658.25,773695871
BIS,Met Office,2020-05-14,04 CONTRACTORS,CORPORATE,HAYS SPECIALIST RECRUITMENT LTD,442156,658.25,773695871
BIS,Met Office,2020-05-28,04 CONTRACTORS,CORPORATE,HAYS SPECIALIST RECRUITMENT LTD,442745,658.25,773695871
BIS,Met Office,2020-05-21,04 CONTRACTORS,BUSINESS GROUP,HAYS SPECIALIST RECRUITMENT LTD,442424,836.06,773695871
BIS,Met Office,2020-05-07,04 CONTRACTORS,BUSINESS GROUP,HAYS SPECIALIST RECRUITMENT LTD,441885,866.57,773695871
BIS,Met Office,2020-05-21,04 CONTRACTORS,OPERATIONS,HAYS SPECIALIST RECRUITMENT LTD,442582,1003,773695871
BIS,Met Office,2020-05-21,04 CONTRACTORS,OPERATIONS,HAYS SPECIALIST RECRUITMENT LTD,442583,1079.5,773695871
BIS,Met Office,2020-05-21,04 CONTRACTORS,OPERATIONS,HAYS SPECIALIST RECRUITMENT LTD,442584,1249.5,773695871
BIS,Met Office,2020-05-21,04 CONTRACTORS,OPERATIONS,HAYS SPECIALIST RECRUITMENT LTD,442579,1666,773695871
BIS,Met Office,2020-05-21,04 CONTRACTORS,OPERATIONS,HAYS SPECIALIST RECRUITMENT LTD,442580,1666,773695871
BIS,Met Office,2020-05-21,04 CONTRACTORS,OPERATIONS,HAYS SPECIALIST RECRUITMENT LTD,442581,1802,773695871
BIS,Met Office,2020-05-14,04 CONTRACTORS,OPERATIONS,JOBSEEKERS RECRUITMENT SERVICES LTD,442312,519.86,130 1297 14
BIS,Met Office,2020-05-07,04 CONTRACTORS,OPERATIONS,JOBSEEKERS RECRUITMENT SERVICES LTD,441943,521.22,130 1297 14
BIS,Met Office,2020-05-07,04 CONTRACTORS,OPERATIONS,JOBSEEKERS RECRUITMENT SERVICES LTD,442070,577.2,130 1297 14
BIS,Met Office,2020-05-14,04 CONTRACTORS,GOVERNMENT SERVICES,JOBSEEKERS RECRUITMENT SERVICES LTD,442296,687.6,130 1297 14
BIS,Met Office,2020-05-28,04 CONTRACTORS,OPERATIONS,JOBSEEKERS RECRUITMENT SERVICES LTD,442656,707.16,130 1297 14
BIS,Met Office,2020-05-14,04 CONTRACTORS,GOVERNMENT SERVICES,JOBSEEKERS RECRUITMENT SERVICES LTD,442310,750.63,130 1297 14
BIS,Met Office,2020-05-07,04 CONTRACTORS,OPERATIONS,JOBSEEKERS RECRUITMENT SERVICES LTD,441128,767.18,130 1297 14
BIS,Met Office,2020-05-28,04 CONTRACTORS,GOVERNMENT SERVICES,JOBSEEKERS RECRUITMENT SERVICES LTD,442657,825.12,130 1297 14
BIS,Met Office,2020-05-14,04 CONTRACTORS,GOVERNMENT SERVICES,JOBSEEKERS RECRUITMENT SERVICES LTD,442297,833.7,130 1297 14
BIS,Met Office,2020-05-07,04 CONTRACTORS,GOVERNMENT SERVICES,JOBSEEKERS RECRUITMENT SERVICES LTD,441889,848.04,130 1297 14
BIS,Met Office,2020-05-07,04 CONTRACTORS,GOVERNMENT SERVICES,JOBSEEKERS RECRUITMENT SERVICES LTD,442071,939.72,130 1297 14
BIS,Met Office,2020-05-07,04 CONTRACTORS,GOVERNMENT SERVICES,JOBSEEKERS RECRUITMENT SERVICES LTD,441891,1042.13,130 1297 14
BIS,Met Office,2020-05-07,04 CONTRACTORS,GOVERNMENT SERVICES,JOBSEEKERS RECRUITMENT SERVICES LTD,442060,1042.13,130 1297 14
BIS,Met Office,2020-05-07,04 CONTRACTORS,GOVERNMENT SERVICES,JOBSEEKERS RECRUITMENT SERVICES LTD,441890,1088.7,130 1297 14
BIS,Met Office,2020-05-07,04 CONTRACTORS,CORPORATE,OUTSOURCE UK LIMITED,442048,1000,576118722
BIS,Met Office,2020-05-14,04 CONTRACTORS,TECHNOLOGY,OUTSOURCE UK LIMITED,442295,1634.4,576118722
BIS,Met Office,2020-05-07,04 CONTRACTORS,OPERATIONS,OUTSOURCE UK LIMITED,441977,1900,576118722
BIS,Met Office,2020-05-14,04 CONTRACTORS,TECHNOLOGY,OUTSOURCE UK LIMITED,442298,2010.85,576118722
BIS,Met Office,2020-05-14,04 CONTRACTORS,TECHNOLOGY,OUTSOURCE UK LIMITED,442313,5228.21,576118722
BIS,Met Office,2020-05-07,04 CONTRACTORS,CORPORATE,OUTSOURCE UK LIMITED,442016,5600,576118722
BIS,Met Office,2020-05-07,04 CONTRACTORS,OPERATIONS,OUTSOURCE UK LIMITED,441978,6150.56,576118722
BIS,Met Office,2020-05-07,04 CONTRACTORS,CHIEF FINANCIAL OFFICER,OUTSOURCE UK LIMITED,441973,6193.62,576118722
BIS,Met Office,2020-05-07,04 CONTRACTORS,CHIEF FINANCIAL OFFICER,OUTSOURCE UK LIMITED,441989,6260.94,576118722
BIS,Met Office,2020-05-07,04 CONTRACTORS,TECHNOLOGY,OUTSOURCE UK LIMITED,441987,7384.68,576118722
BIS,Met Office,2020-05-07,04 CONTRACTORS,STRATEGIC INVESTMENT,OUTSOURCE UK LIMITED,441975,7643.16,576118722
BIS,Met Office,2020-05-07,04 CONTRACTORS,TECHNOLOGY,OUTSOURCE UK LIMITED,441980,7650,576118722
BIS,Met Office,2020-05-07,04 CONTRACTORS,TECHNOLOGY,OUTSOURCE UK LIMITED,441974,7843.04,576118722
BIS,Met Office,2020-05-07,04 CONTRACTORS,TECHNOLOGY,OUTSOURCE UK LIMITED,441976,7875,576118722
BIS,Met Office,2020-05-07,04 CONTRACTORS,TECHNOLOGY,OUTSOURCE UK LIMITED,441979,8100,576118722
BIS,Met Office,2020-05-07,04 CONTRACTORS,STRATEGIC INVESTMENT,OUTSOURCE UK LIMITED,441972,8492.22,576118722
BIS,Met Office,2020-05-07,04 CONTRACTORS,CHIEF FINANCIAL OFFICER,OUTSOURCE UK LIMITED,441984,8505.15,576118722
BIS,Met Office,2020-05-07,04 CONTRACTORS,CHIEF FINANCIAL OFFICER,OUTSOURCE UK LIMITED,441981,8569.42,576118722
BIS,Met Office,2020-05-07,04 CONTRACTORS,TECHNOLOGY,OUTSOURCE UK LIMITED,441970,8903.16,576118722
BIS,Met Office,2020-05-07,04 CONTRACTORS,TECHNOLOGY,OUTSOURCE UK LIMITED,441988,9025.6,576118722
BIS,Met Office,2020-05-07,04 CONTRACTORS,TECHNOLOGY,OUTSOURCE UK LIMITED,441971,9046.08,576118722
BIS,Met Office,2020-05-07,04 CONTRACTORS,TECHNOLOGY,OUTSOURCE UK LIMITED,441969,9775,576118722
BIS,Met Office,2020-05-07,04 CONTRACTORS,TECHNOLOGY,OUTSOURCE UK LIMITED,442078,10645.2,576118722
BIS,Met Office,2020-05-07,04 CONTRACTORS,TECHNOLOGY,QUALSERV CONSULTING LTD,441832,2386.4,719067718
BIS,Met Office,2020-05-07,04 CONTRACTORS,OPERATIONS,QUALSERV CONSULTING LTD,441837,5550.3,719067718
BIS,Met Office,2020-05-07,04 CONTRACTORS,CHIEF FINANCIAL OFFICER,QUALSERV CONSULTING LTD,441840,5600,719067718
BIS,Met Office,2020-05-07,04 CONTRACTORS,STRATEGIC INVESTMENT,QUALSERV CONSULTING LTD,441830,5850,719067718
BIS,Met Office,2020-05-07,04 CONTRACTORS,TECHNOLOGY,QUALSERV CONSULTING LTD,441841,6098.4,719067718
BIS,Met Office,2020-05-07,04 CONTRACTORS,STRATEGIC INVESTMENT,QUALSERV CONSULTING LTD,441833,6276.96,719067718
BIS,Met Office,2020-05-07,04 CONTRACTORS,CORPORATE,QUALSERV CONSULTING LTD,441839,8100,719067718
BIS,Met Office,2020-05-07,04 CONTRACTORS,STRATEGIC INVESTMENT,QUALSERV CONSULTING LTD,441842,8100,719067718
BIS,Met Office,2020-05-07,04 CONTRACTORS,STRATEGIC INVESTMENT,QUALSERV CONSULTING LTD,441883,8100,719067718
BIS,Met Office,2020-05-07,04 CONTRACTORS,TECHNOLOGY,QUALSERV CONSULTING LTD,441832,8310.8,719067718
BIS,Met Office,2020-05-07,04 CONTRACTORS,TECHNOLOGY,QUALSERV CONSULTING LTD,441835,8791.74,719067718
BIS,Met Office,2020-05-07,04 CONTRACTORS,TECHNOLOGY,QUALSERV CONSULTING LTD,441823,8794.62,719067718
BIS,Met Office,2020-05-07,04 CONTRACTORS,STRATEGIC INVESTMENT,QUALSERV CONSULTING LTD,441836,8916.48,719067718
BIS,Met Office,2020-05-14,04 CONTRACTORS,STRATEGIC INVESTMENT,QUALSERV CONSULTING LTD,441831,9258.3,719067718
BIS,Met Office,2020-05-14,04 CONTRACTORS,TECHNOLOGY,QUALSERV CONSULTING LTD,442169,10457.64,719067718
BIS,Met Office,2020-05-21,04 CONTRACTORS,CORPORATE,QUINTON DAVIES LIMITED,442605,1430,291532892
BIS,Met Office,2020-05-21,04 CONTRACTORS,CORPORATE,QUINTON DAVIES LIMITED,442604,15730,291532892
BIS,Met Office,2020-05-14,04 CONTRACTORS,GOVERNMENT SERVICES,SOLOS CONSULTANTS LTD,442115,2936.8,812035476
BIS,Met Office,2020-05-14,04 CONTRACTORS,GOVERNMENT SERVICES,SOLOS CONSULTANTS LTD,442113,3200,812035476
BIS,Met Office,2020-05-14,04 CONTRACTORS,TECHNOLOGY,SOLOS CONSULTANTS LTD,442133,3250,812035476
BIS,Met Office,2020-05-14,04 CONTRACTORS,GOVERNMENT SERVICES,SOLOS CONSULTANTS LTD,442113,3943.4,812035476
BIS,Met Office,2020-05-14,04 CONTRACTORS,CHIEF FINANCIAL OFFICER,SOLOS CONSULTANTS LTD,442120,5559.4,812035476
BIS,Met Office,2020-05-14,04 CONTRACTORS,TECHNOLOGY,SOLOS CONSULTANTS LTD,442126,5740,812035476
BIS,Met Office,2020-05-14,04 CONTRACTORS,TECHNOLOGY,SOLOS CONSULTANTS LTD,442130,7053.84,812035476
BIS,Met Office,2020-05-14,04 CONTRACTORS,STRATEGIC INVESTMENT,SOLOS CONSULTANTS LTD,442127,7190.72,812035476
BIS,Met Office,2020-05-14,04 CONTRACTORS,CORPORATE,SOLOS CONSULTANTS LTD,442124,7196.04,812035476
BIS,Met Office,2020-05-14,04 CONTRACTORS,STRATEGIC INVESTMENT,SOLOS CONSULTANTS LTD,442138,7223.04,812035476
BIS,Met Office,2020-05-14,04 CONTRACTORS,TECHNOLOGY,SOLOS CONSULTANTS LTD,442116,7326.72,812035476
BIS,Met Office,2020-05-14,04 CONTRACTORS,OPERATIONS,SOLOS CONSULTANTS LTD,442129,7546.72,812035476
BIS,Met Office,2020-05-14,04 CONTRACTORS,OPERATIONS,SOLOS CONSULTANTS LTD,442123,8013.6,812035476
BIS,Met Office,2020-05-14,04 CONTRACTORS,BUSINESS GROUP,SOLOS CONSULTANTS LTD,442107,8089.56,812035476
BIS,Met Office,2020-05-14,04 CONTRACTORS,TECHNOLOGY,SOLOS CONSULTANTS LTD,442114,8089.56,812035476
BIS,Met Office,2020-05-14,04 CONTRACTORS,TECHNOLOGY,SOLOS CONSULTANTS LTD,442134,8089.56,812035476
BIS,Met Office,2020-05-14,04 CONTRACTORS,TECHNOLOGY,SOLOS CONSULTANTS LTD,442133,8450,812035476
BIS,Met Office,2020-05-14,04 CONTRACTORS,CORPORATE,SOLOS CONSULTANTS LTD,442128,8652.6,812035476
BIS,Met Office,2020-05-14,04 CONTRACTORS,CORPORATE,SOLOS CONSULTANTS LTD,442111,8992.44,812035476
BIS,Met Office,2020-05-14,04 CONTRACTORS,TECHNOLOGY,SOLOS CONSULTANTS LTD,442109,8992.62,812035476
BIS,Met Office,2020-05-14,04 CONTRACTORS,TECHNOLOGY,SOLOS CONSULTANTS LTD,442108,9127.08,812035476
BIS,Met Office,2020-05-14,04 CONTRACTORS,STRATEGIC INVESTMENT,SOLOS CONSULTANTS LTD,442117,9828,812035476
BIS,Met Office,2020-05-14,04 CONTRACTORS,CHIEF FINANCIAL OFFICER,SOLOS CONSULTANTS LTD,442135,10198.98,812035476
BIS,Met Office,2020-05-14,04 CONTRACTORS,TECHNOLOGY,SOLOS CONSULTANTS LTD,442140,10345.5,812035476
BIS,Met Office,2020-05-14,04 CONTRACTORS,TECHNOLOGY,SOLOS CONSULTANTS LTD,442118,10571.22,812035476
BIS,Met Office,2020-05-14,04 CONTRACTORS,CHIEF FINANCIAL OFFICER,SOLOS CONSULTANTS LTD,442110,10760.4,812035476
BIS,Met Office,2020-05-14,04 CONTRACTORS,STRATEGIC INVESTMENT,SOLOS CONSULTANTS LTD,442112,11310,812035476
BIS,Met Office,2020-05-14,04 CONTRACTORS,TECHNOLOGY,SOLOS CONSULTANTS LTD,442131,11448,812035476
BIS,Met Office,2020-05-14,04 CONTRACTORS,STRATEGIC INVESTMENT,SOLOS CONSULTANTS LTD,442136,11830,812035476
BIS,Met Office,2020-05-14,04 CONTRACTORS,TECHNOLOGY,SOLOS CONSULTANTS LTD,442119,12226.5,812035476
BIS,Met Office,2020-05-14,04 CONTRACTORS,STRATEGIC INVESTMENT,SOLOS CONSULTANTS LTD,442132,12585.78,812035476
BIS,Met Office,2020-05-14,04 CONTRACTORS,TECHNOLOGY,SOLOS CONSULTANTS LTD,442121,12696.84,812035476
BIS,Met Office,2020-05-07,04 CONTRACTORS,TECHNOLOGY,SOLOS CONSULTANTS LTD,441998,13000,812035476
BIS,Met Office,2020-05-14,04 CONTRACTORS,TECHNOLOGY,SOLOS CONSULTANTS LTD,442122,13715.63,812035476
BIS,Met Office,2020-05-14,04 CONTRACTORS,TECHNOLOGY,SOLOS CONSULTANTS LTD,442106,14196,812035476
BIS,Met Office,2020-05-07,04 CONTRACTORS,TECHNOLOGY,SOLOS CONSULTANTS LTD,441997,14812.98,812035476
BIS,Met Office,2020-05-14,04 CONTRACTORS,STRATEGIC INVESTMENT,SOLOS CONSULTANTS LTD,442125,15912,812035476
BIS,Met Office,2020-05-14,04 CONTRACTORS,TECHNOLOGY,SOLOS CONSULTANTS LTD,442139,16848,812035476
BIS,Met Office,2020-05-07,04 CONTRACTORS,GOVERNMENT SERVICES,WA CONSULTANTS LTD,441852,2178,876328977
BIS,Met Office,2020-05-28,04 CONTRACTORS,STRATEGIC INVESTMENT,WA CONSULTANTS LTD,442651,2200,876328977
BIS,Met Office,2020-05-21,04 CONTRACTORS,SCIENCE,WA CONSULTANTS LTD,442378,2997.5,876328977
BIS,Met Office,2020-05-21,04 CONTRACTORS,STRATEGIC INVESTMENT,WA CONSULTANTS LTD,442377,4069.45,876328977
BIS,Met Office,2020-05-14,04 CONTRACTORS,TECHNOLOGY,WA CONSULTANTS LTD,442324,6500,876328977
BIS,Met Office,2020-05-07,04 CONTRACTORS,CORPORATE,WA CONSULTANTS LTD,441844,7011.36,876328977
BIS,Met Office,2020-05-07,04 CONTRACTORS,STRATEGIC INVESTMENT,WA CONSULTANTS LTD,441843,7920,876328977
BIS,Met Office,2020-05-07,04 CONTRACTORS,TECHNOLOGY,WA CONSULTANTS LTD,441846,7958.44,876328977
BIS,Met Office,2020-05-07,04 CONTRACTORS,CHIEF FINANCIAL OFFICER,WA CONSULTANTS LTD,442040,8006.3,876328977
BIS,Met Office,2020-05-07,04 CONTRACTORS,CHIEF FINANCIAL OFFICER,WA CONSULTANTS LTD,442059,8547,876328977
BIS,Met Office,2020-05-21,04 CONTRACTORS,TECHNOLOGY,WA CONSULTANTS LTD,442361,9000,876328977
BIS,Met Office,2020-05-14,04 CONTRACTORS,TECHNOLOGY,WA CONSULTANTS LTD,442323,9398.26,876328977
BIS,Met Office,2020-05-07,04 CONTRACTORS,CHIEF FINANCIAL OFFICER,WA CONSULTANTS LTD,442055,9570,876328977
BIS,Met Office,2020-05-07,04 CONTRACTORS,STRATEGIC INVESTMENT,WA CONSULTANTS LTD,442079,9734.43,876328977
BIS,Met Office,2020-05-07,04 CONTRACTORS,STRATEGIC INVESTMENT,WA CONSULTANTS LTD,442012,10120,876328977
BIS,Met Office,2020-05-07,04 CONTRACTORS,TECHNOLOGY,WA CONSULTANTS LTD,441850,10200,876328977
BIS,Met Office,2020-05-21,04 CONTRACTORS,TECHNOLOGY,WA CONSULTANTS LTD,442376,10770.6,876328977
BIS,Met Office,2020-05-07,04 CONTRACTORS,TECHNOLOGY,WA CONSULTANTS LTD,442051,10900,876328977
BIS,Met Office,2020-05-07,04 CONTRACTORS,TECHNOLOGY,WA CONSULTANTS LTD,441845,11124,876328977
BIS,Met Office,2020-05-14,04 CONTRACTORS,OPERATIONS,WA CONSULTANTS LTD,442045,12017.5,876328977
BIS,Met Office,2020-05-07,04 CONTRACTORS,CHIEF FINANCIAL OFFICER,WA CONSULTANTS LTD,442054,12382.51,876328977
BIS,Met Office,2020-05-14,04 CONTRACTORS,TECHNOLOGY,WA CONSULTANTS LTD,442300,12535,876328977
BIS,Met Office,2020-05-21,04 CONTRACTORS,TECHNOLOGY,WA CONSULTANTS LTD,442379,13382.09,876328977
BIS,Met Office,2020-05-07,04 CONTRACTORS,CHIEF FINANCIAL OFFICER,WA CONSULTANTS LTD,442052,13500,876328977
BIS,Met Office,2020-05-07,04 CONTRACTORS,STRATEGIC INVESTMENT,WA CONSULTANTS LTD,442057,13500,876328977
BIS,Met Office,2020-05-14,04 CONTRACTORS,TECHNOLOGY,WA CONSULTANTS LTD,442299,13685,876328977
BIS,Met Office,2020-05-21,04 CONTRACTORS,TECHNOLOGY,WA CONSULTANTS LTD,442363,13685,876328977
BIS,Met Office,2020-05-21,04 CONTRACTORS,TECHNOLOGY,WA CONSULTANTS LTD,442325,15050,876328977
BIS,Met Office,2020-05-07,04 CONTRACTORS,TECHNOLOGY,WA CONSULTANTS LTD,442020,17250,876328977
BIS,Met Office,2020-05-07,05 CONSULTANTS,STRATEGIC INVESTMENT,CMC PARTNERSHIP CONSULTANCY LTD,442074,12410,305803330
BIS,Met Office,2020-05-14,05 CONSULTANTS,STRATEGIC INVESTMENT,CMC PARTNERSHIP CONSULTANCY LTD,442329,18900,305803330
BIS,Met Office,2020-05-21,05 CONSULTANTS,CORPORATE,KPMG LLP,439303,16000,791788859
BIS,Met Office,2020-05-07,06 ACCOMMODATION,CHIEF FINANCIAL OFFICER,ABOVE THE REST COMMERCIAL CLEANING LTD,441862,38,166969348
BIS,Met Office,2020-05-07,06 ACCOMMODATION,CHIEF FINANCIAL OFFICER,ABOVE THE REST COMMERCIAL CLEANING LTD,441861,565,166969348
BIS,Met Office,2020-05-07,06 ACCOMMODATION,CHIEF FINANCIAL OFFICER,ANGLIAN WATER BUSINESS NATIONAL LTD,441879,151.03,51406002
BIS,Met Office,2020-05-21,06 ACCOMMODATION,CHIEF FINANCIAL OFFICER,BRITISH GAS TRADING LTD,441942,-71.55,684966762
BIS,Met Office,2020-05-21,06 ACCOMMODATION,CHIEF FINANCIAL OFFICER,BRITISH GAS TRADING LTD,442368,12161.65,684966762
BIS,Met Office,2020-05-07,06 ACCOMMODATION,CHIEF FINANCIAL OFFICER,BUCKS & MK FIRE AUTHORITY,441838,1944,824155836
BIS,Met Office,2020-05-21,06 ACCOMMODATION,CHIEF FINANCIAL OFFICER,CABINET OFFICE - COF LEAD ACCOUNT,442616,85325.59,-
BIS,Met Office,2020-05-07,06 ACCOMMODATION,CHIEF FINANCIAL OFFICER,CALOR GAS LIMITED,441945,19.61,207610984
BIS,Met Office,2020-05-07,06 ACCOMMODATION,CHIEF FINANCIAL OFFICER,CALOR GAS LIMITED,441592,34.25,207610984
BIS,Met Office,2020-05-07,06 ACCOMMODATION,CHIEF FINANCIAL OFFICER,CALOR GAS LIMITED,441593,34.25,207610984
BIS,Met Office,2020-05-07,06 ACCOMMODATION,CHIEF FINANCIAL OFFICER,CALOR GAS LIMITED,441594,49.18,207610984
BIS,Met Office,2020-05-21,06 ACCOMMODATION,CHIEF FINANCIAL OFFICER,CALOR GAS LIMITED,442566,254.74,207610984
BIS,Met Office,2020-05-07,06 ACCOMMODATION,CHIEF FINANCIAL OFFICER,CALOR GAS LIMITED,441881,353.31,207610984
BIS,Met Office,2020-05-28,06 ACCOMMODATION,CHIEF FINANCIAL OFFICER,CARDIFF COMMISSIONING LTD,442749,450,484190139
BIS,Met Office,2020-05-07,06 ACCOMMODATION,CHIEF FINANCIAL OFFICER,CARDIFF EXECUTIVE CENTRE LTD,442021,2470,864497378
BIS,Met Office,2020-05-14,06 ACCOMMODATION,CHIEF FINANCIAL OFFICER,CBRE,442173,-686.7,863613615
BIS,Met Office,2020-05-14,06 ACCOMMODATION,CHIEF FINANCIAL OFFICER,CBRE,441828,959.4,863613615
BIS,Met Office,2020-05-14,06 ACCOMMODATION,CHIEF FINANCIAL OFFICER,CLEANING MATTERS BEDFORD LTD,442162,594,847592286
BIS,Met Office,2020-05-07,06 ACCOMMODATION,CHIEF FINANCIAL OFFICER,CORBETT FARMS LTD,441869,100,133425301
BIS,Met Office,2020-05-07,06 ACCOMMODATION,CHIEF FINANCIAL OFFICER,D&G OFFICE SERVICES LTD,441983,180,272997547
BIS,Met Office,2020-05-21,06 ACCOMMODATION,CHIEF FINANCIAL OFFICER,DEPARTMENT OF FINANCE AND PERSONNEL,442392,101,888808059
BIS,Met Office,2020-05-28,06 ACCOMMODATION,CHIEF FINANCIAL OFFICER,EDF ENERGY CUSTOMERS PLC,442627,-111642.87,523041202
BIS,Met Office,2020-05-21,06 ACCOMMODATION,CHIEF FINANCIAL OFFICER,EDF ENERGY CUSTOMERS PLC,442338,360,523041202
BIS,Met Office,2020-05-28,06 ACCOMMODATION,CHIEF FINANCIAL OFFICER,EDF ENERGY CUSTOMERS PLC,442624,112012.4,523041202
BIS,Met Office,2020-05-28,06 ACCOMMODATION,CHIEF FINANCIAL OFFICER,EDF ENERGY CUSTOMERS PLC,442626,117189.7,523041202
BIS,Met Office,2020-05-28,06 ACCOMMODATION,CHIEF FINANCIAL OFFICER,EDF ENERGY CUSTOMERS PLC,442767,135817.2,523041202
BIS,Met Office,2020-05-28,06 ACCOMMODATION,CHIEF FINANCIAL OFFICER,EDF ENERGY CUSTOMERS PLC,442625,142447.84,523041202
BIS,Met Office,2020-05-07,06 ACCOMMODATION,GOVERNMENT SERVICES,EGREMONT RANGERS ARLFC,441878,35,-
BIS,Met Office,2020-05-07,06 ACCOMMODATION,GOVERNMENT SERVICES,EGREMONT RANGERS ARLFC,441878,250,-
BIS,Met Office,2020-05-07,06 ACCOMMODATION,CHIEF FINANCIAL OFFICER,FAIR ISLE ELECTRICITY COMPANY LTD,442072,108.38,774548783
BIS,Met Office,2020-05-07,06 ACCOMMODATION,CHIEF FINANCIAL OFFICER,FOX GROUNDS MAINTENANCE & LANDSCAPING LTD,441819,305.66,129495383
BIS,Met Office,2020-05-07,06 ACCOMMODATION,CHIEF FINANCIAL OFFICER,GBC LTD,442028,162.24,859903672
BIS,Met Office,2020-05-07,06 ACCOMMODATION,CHIEF FINANCIAL OFFICER,GBC LTD,442028,184.8,859903672
BIS,Met Office,2020-05-07,06 ACCOMMODATION,CHIEF FINANCIAL OFFICER,GREENSTAR CLEANERS LTD,441829,110,492376222
BIS,Met Office,2020-05-07,06 ACCOMMODATION,GOVERNMENT SERVICES,Hartlepool Borough Council,442075,35,259087918
BIS,Met Office,2020-05-07,06 ACCOMMODATION,GOVERNMENT SERVICES,Hartlepool Borough Council,442075,50,259087918
BIS,Met Office,2020-05-28,06 ACCOMMODATION,CHIEF FINANCIAL OFFICER,HIGHFIELD GEARS  AND MACHINING LTD,442446,3900,293307300
BIS,Met Office,2020-05-14,06 ACCOMMODATION,CHIEF FINANCIAL OFFICER,HIGHLANDS & ISLANDS AIRPORTS LTD.,440774,5.1,945667772
BIS,Met Office,2020-05-14,06 ACCOMMODATION,CHIEF FINANCIAL OFFICER,HIGHLANDS & ISLANDS AIRPORTS LTD.,440774,101.95,945667772
BIS,Met Office,2020-05-07,06 ACCOMMODATION,CHIEF FINANCIAL OFFICER,I J CANNINGS & SON LTD,441827,1072.08,192803203
BIS,Met Office,2020-05-07,06 ACCOMMODATION,CHIEF FINANCIAL OFFICER,I J CANNINGS & SON LTD,441827,1130.71,192803203
BIS,Met Office,2020-05-07,06 ACCOMMODATION,CHIEF FINANCIAL OFFICER,I J CANNINGS & SON LTD,441827,1171.62,192803203
BIS,Met Office,2020-05-07,06 ACCOMMODATION,CHIEF FINANCIAL OFFICER,I J CANNINGS & SON LTD,441827,1231.76,192803203
BIS,Met Office,2020-05-07,06 ACCOMMODATION,CHIEF FINANCIAL OFFICER,I J CANNINGS & SON LTD,441827,1428.98,192803203
BIS,Met Office,2020-05-07,06 ACCOMMODATION,CHIEF FINANCIAL OFFICER,I J CANNINGS & SON LTD,441827,1472.74,192803203
BIS,Met Office,2020-05-07,06 ACCOMMODATION,CHIEF FINANCIAL OFFICER,I J CANNINGS & SON LTD,441827,1798.68,192803203
BIS,Met Office,2020-05-07,06 ACCOMMODATION,CHIEF FINANCIAL OFFICER,I J CANNINGS & SON LTD,441827,1803.61,192803203
BIS,Met Office,2020-05-07,06 ACCOMMODATION,CHIEF FINANCIAL OFFICER,I J CANNINGS & SON LTD,441827,1846.74,192803203
BIS,Met Office,2020-05-07,06 ACCOMMODATION,CHIEF FINANCIAL OFFICER,I J CANNINGS & SON LTD,441827,1993.4,192803203
BIS,Met Office,2020-05-07,06 ACCOMMODATION,OPERATIONS,INMARSAT SOLUTIONS (CANADA) INC,442067,886.68,766144223
BIS,Met Office,2020-05-14,06 ACCOMMODATION,CHIEF FINANCIAL OFFICER,JR FLAT ROOFING,442318,2959,-
BIS,Met Office,2020-05-07,06 ACCOMMODATION,CHIEF FINANCIAL OFFICER,MACC DEVELOPMENTS LTD,442080,1000,134669201
BIS,Met Office,2020-05-21,06 ACCOMMODATION,CHIEF FINANCIAL OFFICER,MITIE SECURITY LTD,442516,58.4,416706654
BIS,Met Office,2020-05-21,06 ACCOMMODATION,CHIEF FINANCIAL OFFICER,MITIE SECURITY LTD,442514,795.7,416706654
BIS,Met Office,2020-05-21,06 ACCOMMODATION,CHIEF FINANCIAL OFFICER,MITIE SECURITY LTD,442513,803,416706654
BIS,Met Office,2020-05-21,06 ACCOMMODATION,CHIEF FINANCIAL OFFICER,MITIE SECURITY LTD,442515,1099.53,416706654
BIS,Met Office,2020-05-28,06 ACCOMMODATION,CHIEF FINANCIAL OFFICER,MORAY COUNCIL,442743,149.46,663755506
BIS,Met Office,2020-05-21,06 ACCOMMODATION,CHIEF FINANCIAL OFFICER,MORAY COUNCIL,440416,1075.37,663755506
BIS,Met Office,2020-05-07,06 ACCOMMODATION,CHIEF FINANCIAL OFFICER,NORSCOTT VENDING SERVICES LTD,441871,85,751402071
BIS,Met Office,2020-05-07,06 ACCOMMODATION,CHIEF FINANCIAL OFFICER,NORSCOTT VENDING SERVICES LTD,441875,93.5,751402071
BIS,Met Office,2020-05-07,06 ACCOMMODATION,CHIEF FINANCIAL OFFICER,OCS Group UK Limited,442049,27904.56,GB238034379
BIS,Met Office,2020-05-07,06 ACCOMMODATION,CHIEF FINANCIAL OFFICER,OCS Group UK Limited,442049,109901.7,GB238034379
BIS,Met Office,2020-05-07,06 ACCOMMODATION,CHIEF FINANCIAL OFFICER,OUR LADY OF BETHLEHEM ABBEY,441870,112,-
BIS,Met Office,2020-05-21,06 ACCOMMODATION,CHIEF FINANCIAL OFFICER,OUR LADY OF BETHLEHEM ABBEY,442563,500,-
BIS,Met Office,2020-05-28,06 ACCOMMODATION,CHIEF FINANCIAL OFFICER,PLYMOUTH CITY COUNCIL NDR,442769,3542.9,-
BIS,Met Office,2020-05-21,06 ACCOMMODATION,CHIEF FINANCIAL OFFICER,POWER NI ENERGY LTD,442341,343.33,617518142
BIS,Met Office,2020-05-14,06 ACCOMMODATION,CHIEF FINANCIAL OFFICER,REDACTED � PERSONAL DATA,442333,95,899936427
BIS,Met Office,2020-05-14,06 ACCOMMODATION,CHIEF FINANCIAL OFFICER,REDACTED � PERSONAL DATA,442174,160,166458184
BIS,Met Office,2020-05-20,06 ACCOMMODATION,CHIEF FINANCIAL OFFICER,REDACTED � PERSONAL DATA,442076,520,-
BIS,Met Office,2020-05-14,06 ACCOMMODATION,CHIEF FINANCIAL OFFICER,REDACTED � PERSONAL DATA,442332,775,899936427
BIS,Met Office,2020-05-07,06 ACCOMMODATION,CHIEF FINANCIAL OFFICER,REDACTED � PERSONAL DATA,441877,960,-
BIS,Met Office,2020-05-07,06 ACCOMMODATION,CHIEF FINANCIAL OFFICER,REDACTED � PERSONAL DATA,441872,2253.65,-
BIS,Met Office,2020-05-07,06 ACCOMMODATION,CHIEF FINANCIAL OFFICER,REDACTED � PERSONAL DATA,441868,7020.15,619055736
BIS,Met Office,2020-05-21,06 ACCOMMODATION,CHIEF FINANCIAL OFFICER,RIVER RIDGE,442391,105.68,176286083
BIS,Met Office,2020-05-28,06 ACCOMMODATION,CHIEF FINANCIAL OFFICER,RIVEROAK MSE LIMITED,442565,2049.19,326 084 707
BIS,Met Office,2020-05-14,06 ACCOMMODATION,CHIEF FINANCIAL OFFICER,ROLLO POWER SOLUTIONS,442160,-812.8,100516042
BIS,Met Office,2020-05-21,06 ACCOMMODATION,CHIEF FINANCIAL OFFICER,ROLLO POWER SOLUTIONS,442586,414,100516042
BIS,Met Office,2020-05-14,06 ACCOMMODATION,CHIEF FINANCIAL OFFICER,ROLLO POWER SOLUTIONS,442153,450,100516042
BIS,Met Office,2020-05-14,06 ACCOMMODATION,CHIEF FINANCIAL OFFICER,ROLLO POWER SOLUTIONS,441768,812.8,100516042
BIS,Met Office,2020-05-14,06 ACCOMMODATION,CHIEF FINANCIAL OFFICER,SAFESTORE LTD,442319,2681.21,722887607
BIS,Met Office,2020-05-07,06 ACCOMMODATION,CHIEF FINANCIAL OFFICER,SCOTTISH HYDRO-ELECTRIC,438813,56.15,553769603
BIS,Met Office,2020-05-07,06 ACCOMMODATION,GOVERNMENT SERVICES,SCOTTISH HYDRO-ELECTRIC,442036,62.34,553769603
BIS,Met Office,2020-05-07,06 ACCOMMODATION,CHIEF FINANCIAL OFFICER,Scottish Police Authority,441876,1500,158533589
BIS,Met Office,2020-05-07,06 ACCOMMODATION,CHIEF FINANCIAL OFFICER,Severn Trent Water Ltd,441860,649.94,486985565
BIS,Met Office,2020-05-07,06 ACCOMMODATION,CHIEF FINANCIAL OFFICER,Shetland Islands Council,441851,416.74,267858304
BIS,Met Office,2020-05-28,06 ACCOMMODATION,CHIEF FINANCIAL OFFICER,SOUTH WEST WATER LTD,442770,39.07,236873674
BIS,Met Office,2020-05-21,06 ACCOMMODATION,CHIEF FINANCIAL OFFICER,SOUTH WEST WATER LTD,442518,70.96,236873674
BIS,Met Office,2020-05-21,06 ACCOMMODATION,CHIEF FINANCIAL OFFICER,SOUTH WEST WATER LTD,442512,676.12,236873674
BIS,Met Office,2020-05-07,06 ACCOMMODATION,CHIEF FINANCIAL OFFICER,SOUTH WEST WATER LTD,442068,2237.14,236873674
BIS,Met Office,2020-05-07,06 ACCOMMODATION,CHIEF FINANCIAL OFFICER,SSE GENERATION LTD,441873,160,553769603
BIS,Met Office,2020-05-07,06 ACCOMMODATION,CHIEF FINANCIAL OFFICER,SSE TELECOMS,441821,2400,553769603
BIS,Met Office,2020-05-28,06 ACCOMMODATION,CHIEF FINANCIAL OFFICER,ST MODWEN VENTURES LTD,442766,69.52,975081008
BIS,Met Office,2020-05-28,06 ACCOMMODATION,CHIEF FINANCIAL OFFICER,ST MODWEN VENTURES LTD,442764,86.37,975081008
BIS,Met Office,2020-05-28,06 ACCOMMODATION,CHIEF FINANCIAL OFFICER,ST MODWEN VENTURES LTD,442765,89.71,975081008
BIS,Met Office,2020-05-14,06 ACCOMMODATION,CHIEF FINANCIAL OFFICER,UK CENTRE FOR ECOLOGY & HYDROLOGY (UKCEH),442164,970.49,336940192
BIS,Met Office,2020-05-21,06 ACCOMMODATION,CHIEF FINANCIAL OFFICER,Valuation Office Agency,442517,1000,888848141
BIS,Met Office,2020-05-21,06 ACCOMMODATION,CHIEF FINANCIAL OFFICER,Valuation Office Agency,442517,1500,888848141
BIS,Met Office,2020-05-07,06 ACCOMMODATION,GOVERNMENT SERVICES,WHITEHAVEN MARINA LTD,441968,50,947044906
BIS,Met Office,2020-05-07,06 ACCOMMODATION,GOVERNMENT SERVICES,WILLIAM PRENTICE,442004,400,-
BIS,Met Office,2020-05-21,06 ACCOMMODATION,CHIEF FINANCIAL OFFICER,XEIAD,442619,500,811321091
BIS,Met Office,2020-05-21,06 ACCOMMODATION,CHIEF FINANCIAL OFFICER,XEIAD,442619,1140,811321091
BIS,Met Office,2020-05-28,07 EQUIPMENT,OPERATIONS,ATLAS COPCO COMPRESSORS,442603,22.42,207546371
BIS,Met Office,2020-05-28,07 EQUIPMENT,OPERATIONS,ATLAS COPCO COMPRESSORS,442603,663,207546371
BIS,Met Office,2020-05-07,07 EQUIPMENT,TECHNOLOGY,BT BUSINESS DIRECT,441880,2194.18,GB 245 7193 48
BIS,Met Office,2020-05-14,07 EQUIPMENT,SCIENCE,CAMTEC ENGINEERING LTD,442321,12,527033861
BIS,Met Office,2020-05-14,07 EQUIPMENT,SCIENCE,CAMTEC ENGINEERING LTD,442321,54,527033861
BIS,Met Office,2020-05-14,07 EQUIPMENT,SCIENCE,CAMTEC ENGINEERING LTD,442321,62,527033861
BIS,Met Office,2020-05-14,07 EQUIPMENT,SCIENCE,CAMTEC ENGINEERING LTD,442321,225,527033861
BIS,Met Office,2020-05-13,07 EQUIPMENT,SCIENCE,CATALUNYA A65. S.L,21442,2277.81,-
BIS,Met Office,2020-05-21,07 EQUIPMENT,OPERATIONS,GAMMA TELECOM LTD,442370,20.3,823820344
BIS,Met Office,2020-05-07,07 EQUIPMENT,OPERATIONS,GAMMA TELECOM LTD,441874,1128.71,823820344
BIS,Met Office,2020-05-07,07 EQUIPMENT,OPERATIONS,GAMMA TELECOM LTD,441874,1824.89,823820344
BIS,Met Office,2020-05-21,07 EQUIPMENT,OPERATIONS,GAMMA TELECOM LTD,442370,2941.96,823820344
BIS,Met Office,2020-05-07,07 EQUIPMENT,OPERATIONS,M C ENGINEERING SERVICES,442002,330.2,813172066
BIS,Met Office,2020-05-07,07 EQUIPMENT,OPERATIONS,M C ENGINEERING SERVICES,442002,373.62,813172066
BIS,Met Office,2020-05-07,07 EQUIPMENT,OPERATIONS,M C ENGINEERING SERVICES,442002,496.32,813172066
BIS,Met Office,2020-05-07,07 EQUIPMENT,OPERATIONS,M C ENGINEERING SERVICES,442002,667.5,813172066
BIS,Met Office,2020-05-13,07 EQUIPMENT,SCIENCE,RIUVARBEL S.L,21453,435.87,-
BIS,Met Office,2020-05-07,07 EQUIPMENT,TECHNOLOGY,SOFTWARE BOX LIMITED,441110,1400,734245248
BIS,Met Office,2020-05-06,07 EQUIPMENT,OPERATIONS,TOTEX CORPORATION,441042,1970,-
BIS,Met Office,2020-05-13,07 EQUIPMENT,OPERATIONS,VAISALA OYJ,21301,16660.18,FI01244162
BIS,Met Office,2020-05-13,07 EQUIPMENT,OPERATIONS,VAISALA OYJ,21350,16783.59,FI01244162
BIS,Met Office,2020-05-13,07 EQUIPMENT,OPERATIONS,VAISALA OYJ,21346,44673.97,FI01244162
BIS,Met Office,2020-05-07,08 SOFTWARE LICENCES,CHIEF FINANCIAL OFFICER,ADVANCED BUSINESS SOLUTIONS LTD,442031,-259.25,927547983
BIS,Met Office,2020-05-07,08 SOFTWARE LICENCES,CHIEF FINANCIAL OFFICER,ADVANCED BUSINESS SOLUTIONS LTD,440989,58190.46,927547983
BIS,Met Office,2020-05-21,08 SOFTWARE LICENCES,TECHNOLOGY,BARRACHD LTD,442578,2576,618184140
BIS,Met Office,2020-05-07,08 SOFTWARE LICENCES,TECHNOLOGY,BYTES SOFTWARE SERVICES LTD,442073,1749.3,823818226
BIS,Met Office,2020-05-07,08 SOFTWARE LICENCES,TECHNOLOGY,BYTES SOFTWARE SERVICES LTD,442073,1871.8,823818226
BIS,Met Office,2020-05-07,08 SOFTWARE LICENCES,TECHNOLOGY,BYTES SOFTWARE SERVICES LTD,442073,3235.32,823818226
BIS,Met Office,2020-05-07,08 SOFTWARE LICENCES,TECHNOLOGY,BYTES SOFTWARE SERVICES LTD,442073,5971.77,823818226
BIS,Met Office,2020-05-28,08 SOFTWARE LICENCES,CHIEF FINANCIAL OFFICER,CEMAR,442670,180,915042161
BIS,Met Office,2020-05-28,08 SOFTWARE LICENCES,CHIEF FINANCIAL OFFICER,CEMAR,442751,450,915042161
BIS,Met Office,2020-05-07,08 SOFTWARE LICENCES,STRATEGIC INVESTMENT,CIPHR,439809,141260,242661124
BIS,Met Office,2020-05-14,08 SOFTWARE LICENCES,TECHNOLOGY,COMPUTACENTER (UK) LTD,442342,38471.62,490334648
BIS,Met Office,2020-05-28,08 SOFTWARE LICENCES,STRATEGIC INVESTMENT,DXC TECHNOLOGY,442768,10830.8,GB432995915
BIS,Met Office,2020-05-07,08 SOFTWARE LICENCES,OPERATIONS,ELASTICSEARCH LTD,440254,14465.08,155790484
BIS,Met Office,2020-05-27,08 SOFTWARE LICENCES,TECHNOLOGY,FOXIT EUROPE GMBH,441884,2500,DE236332710
BIS,Met Office,2020-05-07,08 SOFTWARE LICENCES,TECHNOLOGY,GOOGLE IRELAND LTD,442043,32.68,6388047V
BIS,Met Office,2020-05-27,08 SOFTWARE LICENCES,GOVERNMENT SERVICES,"IBL SOFTWARE ENGINEERING, SPOL S.R.O.",21461,3351.23,SK2020241883
BIS,Met Office,2020-05-14,08 SOFTWARE LICENCES,TECHNOLOGY,IBM UNITED KINGDOM LTD,442149,9663.7,107328000
BIS,Met Office,2020-05-06,08 SOFTWARE LICENCES,GOVERNMENT SERVICES,"INTELLOVATIONS, LLC",9801,1729.56,-
BIS,Met Office,2020-05-21,08 SOFTWARE LICENCES,TECHNOLOGY,National Oceanography Centre,442359,3420,GB 338 5487 64
BIS,Met Office,2020-05-21,08 SOFTWARE LICENCES,TECHNOLOGY,ORACLE CORPORATION UK LTD,442357,10415.16,391313073
BIS,Met Office,2020-05-21,08 SOFTWARE LICENCES,TECHNOLOGY,PRESENTATION CARTOGRAPHY LTD,438995,1250,-
BIS,Met Office,2020-05-07,08 SOFTWARE LICENCES,TECHNOLOGY,PRESENTATION CARTOGRAPHY LTD,442023,6600,-
BIS,Met Office,2020-05-07,08 SOFTWARE LICENCES,TECHNOLOGY,PRESENTATION CARTOGRAPHY LTD,442023,7000,-
BIS,Met Office,2020-05-07,08 SOFTWARE LICENCES,TECHNOLOGY,PRESENTATION CARTOGRAPHY LTD,442023,38000,-
BIS,Met Office,2020-05-14,08 SOFTWARE LICENCES,TECHNOLOGY,PROSPERON NETWORKS LTD,442144,3523,889545649
BIS,Met Office,2020-05-28,08 SOFTWARE LICENCES,TECHNOLOGY,SECTIGO LTD,442760,10400,834875295
BIS,Met Office,2020-05-07,08 SOFTWARE LICENCES,TECHNOLOGY,SOFTWARE BOX LIMITED,441787,132,734245248
BIS,Met Office,2020-05-07,08 SOFTWARE LICENCES,TECHNOLOGY,SOFTWARE BOX LIMITED,441787,352,734245248
BIS,Met Office,2020-05-07,08 SOFTWARE LICENCES,TECHNOLOGY,SOFTWARE BOX LIMITED,441767,396,734245248
BIS,Met Office,2020-05-07,08 SOFTWARE LICENCES,TECHNOLOGY,SOFTWARE BOX LIMITED,441767,1056,734245248
BIS,Met Office,2020-05-14,08 SOFTWARE LICENCES,TECHNOLOGY,UKRI,442360,-3420,GB287461957
BIS,Met Office,2020-05-14,08 SOFTWARE LICENCES,TECHNOLOGY,UKRI,436718,3420,GB287461957
BIS,Met Office,2020-05-27,08 SOFTWARE LICENCES,TECHNOLOGY,URBAN AIRSHIP INC.,442409,168.94,-
BIS,Met Office,2020-05-21,10 EQUIPMENT MAINTENANCE,TECHNOLOGY,COMPUTACENTER (UK) LTD,440279,3187.92,490334648
BIS,Met Office,2020-05-13,10 EQUIPMENT MAINTENANCE,OPERATIONS,DATAWELL BV,21456,998.22,001740283801
BIS,Met Office,2020-05-21,10 EQUIPMENT MAINTENANCE,OPERATIONS,FLANN MICROWAVE LTD,442412,255,143418974
BIS,Met Office,2020-05-21,10 EQUIPMENT MAINTENANCE,OPERATIONS,FLANN MICROWAVE LTD,442411,379,143418974
BIS,Met Office,2020-05-28,10 EQUIPMENT MAINTENANCE,TECHNOLOGY,IP PERFORMANCE LTD,442652,15390,650541851
BIS,Met Office,2020-05-07,10 EQUIPMENT MAINTENANCE,OPERATIONS,ISOTHERMAL TECHNOLOGY LTD,441818,812,325108979
BIS,Met Office,2020-05-07,10 EQUIPMENT MAINTENANCE,TECHNOLOGY,ORACLE CORPORATION UK LTD,441893,19009.42,391313073
BIS,Met Office,2020-05-07,10 EQUIPMENT MAINTENANCE,TECHNOLOGY,ORACLE CORPORATION UK LTD,441892,27434.72,391313073
BIS,Met Office,2020-05-07,10 EQUIPMENT MAINTENANCE,TECHNOLOGY,ORACLE CORPORATION UK LTD,442018,145401.93,391313073
BIS,Met Office,2020-05-27,10 EQUIPMENT MAINTENANCE,OPERATIONS,RAYMETRICS S.A. (GREEK ACCOUNT),21462,5728.66,EL999641589
BIS,Met Office,2020-05-21,10 EQUIPMENT MAINTENANCE,OPERATIONS,YOUNG CALIBRATION LIMITED,442576,1200,673900720
BIS,Met Office,2020-05-21,11 SERVICES,GOVERNMENT SERVICES,ACCELERATION EMARKETING,442415,3187.53,848940776
BIS,Met Office,2020-05-07,11 SERVICES,GOVERNMENT SERVICES,ADOPSTAR,442039,1250,115036848
BIS,Met Office,2020-05-14,11 SERVICES,TECHNOLOGY,AKAMAI TECHNOLOGIES LTD,442314,1053.55,745091237
BIS,Met Office,2020-05-07,11 SERVICES,TECHNOLOGY,AKAMAI TECHNOLOGIES LTD,441796,4248.48,745091237
BIS,Met Office,2020-05-14,11 SERVICES,TECHNOLOGY,AKAMAI TECHNOLOGIES LTD,442314,4249.48,745091237
BIS,Met Office,2020-05-07,11 SERVICES,TECHNOLOGY,AKAMAI TECHNOLOGIES LTD,441796,21250,745091237
BIS,Met Office,2020-05-07,11 SERVICES,TECHNOLOGY,AKAMAI TECHNOLOGIES LTD,441796,22304.55,745091237
BIS,Met Office,2020-05-14,11 SERVICES,TECHNOLOGY,AKAMAI TECHNOLOGIES LTD,442314,42500,745091237
BIS,Met Office,2020-05-21,11 SERVICES,CHIEF FINANCIAL OFFICER,ALLSTAR BUSINESS SOLUTIONS LTD,442585,292.99,747880191
BIS,Met Office,2020-05-07,11 SERVICES,CHIEF FINANCIAL OFFICER,ALLSTAR BUSINESS SOLUTIONS LTD,442027,312.89,747880191
BIS,Met Office,2020-05-21,11 SERVICES,CHIEF FINANCIAL OFFICER,ALPHABET (GB) LTD,442520,180.63,572417244
BIS,Met Office,2020-05-21,11 SERVICES,CHIEF FINANCIAL OFFICER,ALPHABET (GB) LTD,442519,189.8,572417244
BIS,Met Office,2020-05-06,11 SERVICES,TECHNOLOGY,AMAZON WEB SERVICES INC.,9770,52.32,N/A
BIS,Met Office,2020-05-06,11 SERVICES,TECHNOLOGY,AMAZON WEB SERVICES INC.,9774,1207.97,N/A
BIS,Met Office,2020-05-06,11 SERVICES,TECHNOLOGY,AMAZON WEB SERVICES INC.,9772,12110.74,N/A
BIS,Met Office,2020-05-06,11 SERVICES,TECHNOLOGY,AMAZON WEB SERVICES INC.,9771,15486.9,N/A
BIS,Met Office,2020-05-06,11 SERVICES,TECHNOLOGY,AMAZON WEB SERVICES INC.,9771,24221.48,N/A
BIS,Met Office,2020-05-06,11 SERVICES,TECHNOLOGY,AMAZON WEB SERVICES INC.,9771,45455.4,N/A
BIS,Met Office,2020-05-21,11 SERVICES,CHIEF FINANCIAL OFFICER,ANVIL MOBILE LIMITED,442374,379.53,981686175
BIS,Met Office,2020-05-28,11 SERVICES,OPERATIONS,APPLIED SATELLITE TECHNOLOGY SYSTEMS LTD,442658,304.33,720108683
BIS,Met Office,2020-05-28,11 SERVICES,OPERATIONS,APPLIED SATELLITE TECHNOLOGY SYSTEMS LTD,442659,10452.68,720108683
BIS,Met Office,2020-05-21,11 SERVICES,GOVERNMENT SERVICES,Arup,442435,47728,524461265
BIS,Met Office,2020-05-28,11 SERVICES,OPERATIONS,AST CONNECTIONS LTD,442662,122.35,720108683
BIS,Met Office,2020-05-07,11 SERVICES,TECHNOLOGY,AUTOMATION LOGIC,441359,90920,985044595
BIS,Met Office,2020-05-06,11 SERVICES,OPERATIONS,"AXYS TECHNOLOGIES, INC",9590,116.05,-
BIS,Met Office,2020-05-07,11 SERVICES,TECHNOLOGY,BAE SYSTEMS APPLIED INTELLIGENCE LIMITED,441771,1051.88,GB641407169
BIS,Met Office,2020-05-07,11 SERVICES,TECHNOLOGY,BAE SYSTEMS APPLIED INTELLIGENCE LIMITED,440411,2389.56,GB641407169
BIS,Met Office,2020-05-07,11 SERVICES,TECHNOLOGY,BAE SYSTEMS APPLIED INTELLIGENCE LIMITED,440268,4106.37,GB641407169
BIS,Met Office,2020-05-07,11 SERVICES,TECHNOLOGY,BAE SYSTEMS APPLIED INTELLIGENCE LIMITED,441402,14019.11,GB641407169
BIS,Met Office,2020-05-07,11 SERVICES,TECHNOLOGY,BAE SYSTEMS APPLIED INTELLIGENCE LIMITED,441770,14420.8,GB641407169
BIS,Met Office,2020-05-28,11 SERVICES,STRATEGIC INVESTMENT,BAE SYSTEMS APPLIED INTELLIGENCE LIMITED,442575,21700,GB641407169
BIS,Met Office,2020-05-20,11 SERVICES,GOVERNMENT SERVICES,"BASILIO SOZINHO CUBULA SERVI�OS, E.I.",9814,3933.67,N/A
BIS,Met Office,2020-05-21,11 SERVICES,GOVERNMENT SERVICES,BBC MEDIA ACTION,442177,97979,GB333289454
BIS,Met Office,2020-05-06,11 SERVICES,OPERATIONS,BENTLEY WALKER LTD,9757,553.32,107995930
BIS,Met Office,2020-05-28,11 SERVICES,TECHNOLOGY,BJSS LIMITED,442432,32762.5,613295452
BIS,Met Office,2020-05-13,11 SERVICES,TECHNOLOGY,BLOOMREACH B.V.,441392,1918.88,NL815260076B01
BIS,Met Office,2020-05-07,11 SERVICES,OPERATIONS,BOC LTD,442047,11320.45,226556555
BIS,Met Office,2020-05-06,11 SERVICES,SCIENCE,B-OPEN SOLUTIONS SRL,21401,69330.76,-
BIS,Met Office,2020-05-21,11 SERVICES,CHIEF FINANCIAL OFFICER,BT CONFERENCING,442339,337.95,245719348
BIS,Met Office,2020-05-21,11 SERVICES,CHIEF FINANCIAL OFFICER,BT GLOBAL SERVICES,442606,15343.4,245719348
BIS,Met Office,2020-05-28,11 SERVICES,CHIEF FINANCIAL OFFICER,BT GLOBAL SERVICES,442763,15353.79,245719348
BIS,Met Office,2020-05-14,11 SERVICES,CHIEF FINANCIAL OFFICER,BT PLC,441946,3538.97,245719348
BIS,Met Office,2020-05-21,11 SERVICES,CHIEF FINANCIAL OFFICER,BT PLC,442445,13881,245719348
BIS,Met Office,2020-05-21,11 SERVICES,GOVERNMENT SERVICES,CACI LTD,442594,1418.75,380609841
BIS,Met Office,2020-05-21,11 SERVICES,GOVERNMENT SERVICES,CACI LTD,442594,4122.75,380609841
BIS,Met Office,2020-05-21,11 SERVICES,GOVERNMENT SERVICES,CACI LTD,442594,5147.25,380609841
BIS,Met Office,2020-05-14,11 SERVICES,GOVERNMENT SERVICES,CACI LTD,442142,6467,380609841
BIS,Met Office,2020-05-14,11 SERVICES,GOVERNMENT SERVICES,CACI LTD,442142,8046.75,380609841
BIS,Met Office,2020-05-14,11 SERVICES,BUSINESS GROUP,CACI LTD,442145,14500,380609841
BIS,Met Office,2020-05-14,11 SERVICES,STRATEGIC INVESTMENT,CACI LTD,442151,24880,380609841
BIS,Met Office,2020-05-14,11 SERVICES,GOVERNMENT SERVICES,CACI LTD,442142,26323.05,380609841
BIS,Met Office,2020-05-28,11 SERVICES,GOVERNMENT SERVICES,CAMBRIDGE ECONOMETRICS LTD,442665,5104.52,1916825
BIS,Met Office,2020-05-13,11 SERVICES,SCIENCE,CARIBBEAN INSTITUTE FOR METEOROLOGY AND,9797,31672.45,1000008663424
BIS,Met Office,2020-05-21,11 SERVICES,OPERATIONS,CARTUS LTD,442404,110,768489458
BIS,Met Office,2020-05-21,11 SERVICES,OPERATIONS,CARTUS LTD,442408,110,768489458
BIS,Met Office,2020-05-07,11 SERVICES,OPERATIONS,CATALYST IT,442017,1301.87,978169262
BIS,Met Office,2020-05-07,11 SERVICES,OPERATIONS,CATALYST IT,442041,2800,978169262
BIS,Met Office,2020-05-20,11 SERVICES,GOVERNMENT SERVICES,CENTRO INTERNACIONAL DE AGRICULTURA TROPICAL,442362,115840,na
BIS,Met Office,2020-05-07,11 SERVICES,GOVERNMENT SERVICES,Cgi It Uk Limited,441853,316591.25,232615194
BIS,Met Office,2020-05-21,11 SERVICES,BUSINESS GROUP,Civil Aviation Authority,442568,4275,771548214
BIS,Met Office,2020-05-21,11 SERVICES,TECHNOLOGY,CLOUDREACH EUROPE LIMITED,442375,2089.92,978187168
BIS,Met Office,2020-05-21,11 SERVICES,TECHNOLOGY,CLOUDREACH EUROPE LIMITED,442596,4000,978187168
BIS,Met Office,2020-05-07,11 SERVICES,TECHNOLOGY,CLOUDREACH EUROPE LIMITED,442022,7110,978187168
BIS,Met Office,2020-05-14,11 SERVICES,OPERATIONS,CLOUDREACH EUROPE LIMITED,442005,7167.11,978187168
BIS,Met Office,2020-05-28,11 SERVICES,OPERATIONS,CLOUDREACH EUROPE LIMITED,442602,7288.24,978187168
BIS,Met Office,2020-05-21,11 SERVICES,TECHNOLOGY,CLOUDREACH EUROPE LIMITED,442612,7288.24,978187168
BIS,Met Office,2020-05-14,11 SERVICES,BUSINESS GROUP,CRANFIELD UNIVERSITY,442176,750,491358622
BIS,Met Office,2020-05-28,11 SERVICES,GOVERNMENT SERVICES,DBS FINANCE RECEIPTS CTS,442757,11571.86,888805068
BIS,Met Office,2020-05-14,11 SERVICES,CHIEF FINANCIAL OFFICER,DIGITAL COMMUNICATIONS SYSTEMS LIMITED,442311,5868.32,GB 556 1971 19
BIS,Met Office,2020-05-14,11 SERVICES,OPERATIONS,DOT SOFTWARE LTD,442155,2800,701022805
BIS,Met Office,2020-05-14,11 SERVICES,OPERATIONS,DOT SOFTWARE LTD,442163,3360,701022805
BIS,Met Office,2020-05-14,11 SERVICES,CORPORATE,ENVIRAL LTD,442010,1375,-
BIS,Met Office,2020-05-21,11 SERVICES,CORPORATE,EQUINITI ICS LTD,442418,316.66,915967778
BIS,Met Office,2020-05-07,11 SERVICES,CORPORATE,EQUINITI ICS LTD,441647,395.5,915967778
BIS,Met Office,2020-05-07,11 SERVICES,CORPORATE,EQUINITI ICS LTD,441882,452,915967778
BIS,Met Office,2020-05-21,11 SERVICES,CORPORATE,EQUINITI ICS LTD,442417,6846,915967778
BIS,Met Office,2020-05-20,11 SERVICES,OPERATIONS,"EUTELSAT MADERIA, UNIPESSOAL LDA",21493,2265.83,PT511283733
BIS,Met Office,2020-05-06,11 SERVICES,OPERATIONS,"EUTELSAT, S.A.",21402,6104.38,-
BIS,Met Office,2020-05-06,11 SERVICES,OPERATIONS,"EUTELSAT, S.A.",21435,7787.74,-
BIS,Met Office,2020-05-21,11 SERVICES,CHIEF FINANCIAL OFFICER,EXPONENTIAL-E,442577,2977.25,GB798572653
BIS,Met Office,2020-05-21,11 SERVICES,GOVERNMENT SERVICES,FCO,442595,373.8,888813560
BIS,Met Office,2020-05-07,11 SERVICES,GOVERNMENT SERVICES,FCO,441816,2909.75,888813560
BIS,Met Office,2020-05-28,11 SERVICES,STRATEGIC INVESTMENT,FLYFORM LTD,439383,275.56,237333808
BIS,Met Office,2020-05-28,11 SERVICES,STRATEGIC INVESTMENT,FLYFORM LTD,439383,1000,237333808
BIS,Met Office,2020-05-28,11 SERVICES,CORPORATE,FRANCIS CLARK LLP,441817,1200,855910212
BIS,Met Office,2020-05-06,11 SERVICES,GOVERNMENT SERVICES,FRANKLIN J OPIJAH c/o UNIVERSITY OF NAIROBI,441863,3600,A002025201U
BIS,Met Office,2020-05-21,11 SERVICES,CHIEF FINANCIAL OFFICER,GAMMA BUSINESS COMMUNICATIONS LTD,442365,497.5,823820344
BIS,Met Office,2020-05-21,11 SERVICES,CHIEF FINANCIAL OFFICER,GAMMA TELECOM LTD,442371,12.05,823820344
BIS,Met Office,2020-05-21,11 SERVICES,CHIEF FINANCIAL OFFICER,GAMMA TELECOM LTD,442371,31856.7,823820344
BIS,Met Office,2020-05-07,11 SERVICES,CHIEF FINANCIAL OFFICER,GB GROUP PLC,432389,-4138.13,539716218
BIS,Met Office,2020-05-07,11 SERVICES,CHIEF FINANCIAL OFFICER,GB GROUP PLC,436506,635.96,539716218
BIS,Met Office,2020-05-07,11 SERVICES,CHIEF FINANCIAL OFFICER,GB GROUP PLC,435039,657.63,539716218
BIS,Met Office,2020-05-07,11 SERVICES,CHIEF FINANCIAL OFFICER,GB GROUP PLC,441007,657.8,539716218
BIS,Met Office,2020-05-07,11 SERVICES,CHIEF FINANCIAL OFFICER,GB GROUP PLC,432648,664.42,539716218
BIS,Met Office,2020-05-07,11 SERVICES,CHIEF FINANCIAL OFFICER,GB GROUP PLC,438589,678.23,539716218
BIS,Met Office,2020-05-07,11 SERVICES,CHIEF FINANCIAL OFFICER,GB GROUP PLC,433811,722.47,539716218
BIS,Met Office,2020-05-07,11 SERVICES,CHIEF FINANCIAL OFFICER,GB GROUP PLC,441780,3000,539716218
BIS,Met Office,2020-05-14,11 SERVICES,CHIEF FINANCIAL OFFICER,HARPER MACLEOD LLP,442172,198.4,762130557
BIS,Met Office,2020-05-28,11 SERVICES,CORPORATE,HAWK INCENTIVES LTD,442442,-78.75,238839422
BIS,Met Office,2020-05-07,11 SERVICES,CORPORATE,HAWK INCENTIVES LTD,441867,5801.25,238839422
BIS,Met Office,2020-05-07,11 SERVICES,CORPORATE,HAWK INCENTIVES LTD,441825,7638.75,238839422
BIS,Met Office,2020-05-28,11 SERVICES,CORPORATE,HAWK INCENTIVES LTD,442422,26864.25,238839422
BIS,Met Office,2020-05-14,11 SERVICES,CORPORATE,HEALTH MANAGEMENT LTD,442322,128.27,792250621
BIS,Met Office,2020-05-07,11 SERVICES,CORPORATE,HEALTH MANAGEMENT LTD,441782,2684.11,792250621
BIS,Met Office,2020-05-21,11 SERVICES,CHIEF FINANCIAL OFFICER,HMRC AR RECEIPTS,439185,96895.03,888848141
BIS,Met Office,2020-05-27,11 SERVICES,BUSINESS GROUP,"IBL SOFTWARE ENGINEERING, SPOL S.R.O.",420918,6217.53,SK2020241883
BIS,Met Office,2020-05-21,11 SERVICES,TECHNOLOGY,IBM UNITED KINGDOM LTD,442608,6062.7,107328000
BIS,Met Office,2020-05-20,11 SERVICES,GOVERNMENT SERVICES,IGAD CLIMATE PREDICTION & APPLICATIONS CNTR,442614,162950.53,-
BIS,Met Office,2020-05-07,11 SERVICES,GOVERNMENT SERVICES,INK COPYWRITERS LTD,441990,1000,850847214
BIS,Met Office,2020-05-07,11 SERVICES,CORPORATE,INK COPYWRITERS LTD,441982,2750,850847214
BIS,Met Office,2020-05-14,11 SERVICES,GOVERNMENT SERVICES,INK COPYWRITERS LTD,439306,3000,850847214
BIS,Met Office,2020-05-27,11 SERVICES,BUSINESS GROUP,INTERNATIONAL CIVIL AVIATION ORGANIZATION,442628,41006,-
BIS,Met Office,2020-05-28,11 SERVICES,CHIEF FINANCIAL OFFICER,INTEROUTE COMMUNICATIONS LIMITED,442663,4931.94,832 7071 39
BIS,Met Office,2020-05-07,11 SERVICES,OPERATIONS,ISOTHERMAL TECHNOLOGY LTD,441818,35,325108979
BIS,Met Office,2020-05-06,11 SERVICES,GOVERNMENT SERVICES,IT.COM,9800,5220.18,-
BIS,Met Office,2020-05-07,11 SERVICES,CORPORATE,JCA OCCUPATIONAL PSYCHOLOGISTS LIMITED,441986,10685,655518420
BIS,Met Office,2020-05-13,11 SERVICES,GOVERNMENT SERVICES,KENYA METEOROLOGICAL DEPARTMENT,441544,1325.13,-
BIS,Met Office,2020-05-07,11 SERVICES,OPERATIONS,LEARNING POOL LIMITED,441028,10000,882389379
BIS,Met Office,2020-05-07,11 SERVICES,CHIEF FINANCIAL OFFICER,LICENCE BUREAU LTD,442056,447.9,820219467
BIS,Met Office,2020-05-21,11 SERVICES,GOVERNMENT SERVICES,MAWASEM LTD,442572,7082.7,197694731
BIS,Met Office,2020-05-27,11 SERVICES,SCIENCE,MERCATOR OCEAN INTERNATIONAL,21499,89221.98,-
BIS,Met Office,2020-05-14,11 SERVICES,CORPORATE,MERKLE UK THREE LTD T/A MERKLE PERISCOPIX,442303,8213.33,843316243
BIS,Met Office,2020-05-14,11 SERVICES,CHIEF FINANCIAL OFFICER,MITIE SECURITY LTD,441815,10263.36,416706654
BIS,Met Office,2020-05-14,11 SERVICES,CHIEF FINANCIAL OFFICER,MITIE SECURITY LTD,441947,20526.35,416706654
BIS,Met Office,2020-05-21,11 SERVICES,OPERATIONS,MOMENTUM INCORPORATED,442419,1600,598958541
BIS,Met Office,2020-05-14,11 SERVICES,BUSINESS GROUP,MOMENTUM INCORPORATED,441765,5000,598958541
BIS,Met Office,2020-05-21,11 SERVICES,OPERATIONS,MOMENTUM INCORPORATED,442438,6660,598958541
BIS,Met Office,2020-05-21,11 SERVICES,OPERATIONS,MOMENTUM INCORPORATED,442440,6660,598958541
BIS,Met Office,2020-05-21,11 SERVICES,CHIEF FINANCIAL OFFICER,Morton Fraser LLP,442388,108,269129336
BIS,Met Office,2020-05-21,11 SERVICES,CHIEF FINANCIAL OFFICER,Morton Fraser LLP,442413,132,269129336
BIS,Met Office,2020-05-21,11 SERVICES,CHIEF FINANCIAL OFFICER,Morton Fraser LLP,442389,350,269129336
BIS,Met Office,2020-05-14,11 SERVICES,CORPORATE,NAS MEDIA LTD,441985,995,224667500
BIS,Met Office,2020-05-07,11 SERVICES,CHIEF FINANCIAL OFFICER,National Audit Office,441888,37250,417632457
BIS,Met Office,2020-05-20,11 SERVICES,OPERATIONS,NSSL GLOBAL LTD,9788,56.16,725151948
BIS,Met Office,2020-05-20,11 SERVICES,OPERATIONS,NSSL GLOBAL LTD,9785,1555,725151948
BIS,Met Office,2020-05-07,11 SERVICES,STRATEGIC INVESTMENT,NTT DATA UK LTD,442019,6277.73,GB159334590
BIS,Met Office,2020-05-21,11 SERVICES,BUSINESS GROUP,PENINSULAR INNOVATIONS LIMITED,442622,150,631074569
BIS,Met Office,2020-05-28,11 SERVICES,CHIEF FINANCIAL OFFICER,PRIMETECH (UK) LTD,442615,2220,694212039
BIS,Met Office,2020-05-14,11 SERVICES,STRATEGIC INVESTMENT,PSYCHOLOGICA,442315,172,143530636
BIS,Met Office,2020-05-07,11 SERVICES,TECHNOLOGY,QUEST SOFTWARE INTERNATIONAL LTD,441834,6750,581955404
BIS,Met Office,2020-05-07,11 SERVICES,OPERATIONS,REDACTED � PERSONAL DATA,442077,130.24,-
BIS,Met Office,2020-05-07,11 SERVICES,CORPORATE,REDACTED � PERSONAL DATA,441849,165,143043312
BIS,Met Office,2020-05-07,11 SERVICES,CORPORATE,REDACTED � PERSONAL DATA,441848,704,143043312
BIS,Met Office,2020-05-07,11 SERVICES,CHIEF FINANCIAL OFFICER,REDACTED � PERSONAL DATA,441864,720,-
BIS,Met Office,2020-05-13,11 SERVICES,GOVERNMENT SERVICES,REDACTED � PERSONAL DATA,440775,2400,-
BIS,Met Office,2020-05-27,11 SERVICES,SCIENCE,REDACTED � PERSONAL DATA,21468,4538.64,112591322
BIS,Met Office,2020-05-13,11 SERVICES,GOVERNMENT SERVICES,REDACTED � PERSONAL DATA,21477,20575.01,-
BIS,Met Office,2020-05-28,11 SERVICES,GOVERNMENT SERVICES,RESURGENCE URBAN RESILIENCE TRUST,442167,16376,259524184
BIS,Met Office,2020-05-07,11 SERVICES,GOVERNMENT SERVICES,ROWE IT LTD,442015,282.5,924964394
BIS,Met Office,2020-05-21,11 SERVICES,GOVERNMENT SERVICES,ROWE IT LTD,442620,6457.5,924964394
BIS,Met Office,2020-05-07,11 SERVICES,OPERATIONS,ROWE IT LTD,442007,14507.5,924964394
BIS,Met Office,2020-05-07,11 SERVICES,STRATEGIC INVESTMENT,ROWE IT LTD,442009,15000,924964394
BIS,Met Office,2020-05-07,11 SERVICES,GOVERNMENT SERVICES,ROWE IT LTD,442042,24303.75,924964394
BIS,Met Office,2020-05-07,11 SERVICES,OPERATIONS,ROWE IT LTD,442014,39051.25,924964394
BIS,Met Office,2020-05-07,11 SERVICES,OPERATIONS,ROWE IT LTD,442006,40428.75,924964394
BIS,Met Office,2020-05-07,11 SERVICES,STRATEGIC INVESTMENT,ROWE IT LTD,442011,74425,924964394
BIS,Met Office,2020-05-07,11 SERVICES,GOVERNMENT SERVICES,SCIENCE & TECHNOLOGY FACILITIES COUNCIL,441822,12499.66,618367325
BIS,Met Office,2020-05-07,11 SERVICES,GOVERNMENT SERVICES,SCIENCE & TECHNOLOGY FACILITIES COUNCIL,441822,25000,618367325
BIS,Met Office,2020-05-14,11 SERVICES,CHIEF FINANCIAL OFFICER,Siemens Plc,442273,121.59,GB 927 317 516
BIS,Met Office,2020-05-07,11 SERVICES,GOVERNMENT SERVICES,SOCIAL SENSING LTD,441788,2758,-
BIS,Met Office,2020-05-07,11 SERVICES,GOVERNMENT SERVICES,SOCIAL SENSING LTD,441789,2758,-
BIS,Met Office,2020-05-14,11 SERVICES,STRATEGIC INVESTMENT,SOFTCAT LTD,442302,672,491848503
BIS,Met Office,2020-05-21,11 SERVICES,OPERATIONS,SOFTWIRE TECHNOLOGY LIMITED,442434,2520,752 1253 57
BIS,Met Office,2020-05-20,11 SERVICES,GOVERNMENT SERVICES,Solomon Islands Meteorological Service,9787,3854.3,-
BIS,Met Office,2020-05-20,11 SERVICES,GOVERNMENT SERVICES,SOUTHSOUTHNORTH,442436,36434.88,4790219721
BIS,Met Office,2020-05-21,11 SERVICES,TECHNOLOGY,SSE CONTRACTING LTD,442402,1601.44,570118464
BIS,Met Office,2020-05-28,11 SERVICES,TECHNOLOGY,SSE CONTRACTING LTD,442667,10137.45,570118464
BIS,Met Office,2020-05-14,11 SERVICES,CHIEF FINANCIAL OFFICER,SURE SOUTH ATLANTIC LTD,442289,563,-
BIS,Met Office,2020-05-21,11 SERVICES,CHIEF FINANCIAL OFFICER,SURE SOUTH ATLANTIC LTD,442617,584.8,NOVATREG
BIS,Met Office,2020-05-21,11 SERVICES,CHIEF FINANCIAL OFFICER,SURE SOUTH ATLANTIC LTD,442334,4743,-
BIS,Met Office,2020-05-21,11 SERVICES,CHIEF FINANCIAL OFFICER,SURE SOUTH ATLANTIC LTD (ST HELENA),442610,220,30005
BIS,Met Office,2020-05-07,11 SERVICES,CORPORATE,SWANTECH LOGISTICS LTD,441857,2849,769332401
BIS,Met Office,2020-05-20,11 SERVICES,CHIEF FINANCIAL OFFICER,SWISSCOM (SCHWEIZ) AG,442570,91.65,-
BIS,Met Office,2020-05-27,11 SERVICES,CHIEF FINANCIAL OFFICER,SWISSCOM (SCHWEIZ) AG,442170,92.72,-
BIS,Met Office,2020-05-07,11 SERVICES,CHIEF FINANCIAL OFFICER,TELEFONICA O2 UK LIMITED,442069,50,778603785
BIS,Met Office,2020-05-21,11 SERVICES,CHIEF FINANCIAL OFFICER,TELEFONICA O2 UK LIMITED,442316,50,778603785
BIS,Met Office,2020-05-21,11 SERVICES,CHIEF FINANCIAL OFFICER,TELEFONICA O2 UK LIMITED,442380,8919.31,778603785
BIS,Met Office,2020-05-20,11 SERVICES,CHIEF FINANCIAL OFFICER,TELIA FINLAND OYJ,21497,158.96,FI14756079
BIS,Met Office,2020-05-27,11 SERVICES,CHIEF FINANCIAL OFFICER,TELIA FINLAND OYJ,21496,194.66,FI14756079
BIS,Met Office,2020-05-21,11 SERVICES,OPERATIONS,THE KNOWLEDGE ACADEMY LIMITED,442609,1200,GB970667487
BIS,Met Office,2020-05-21,11 SERVICES,OPERATIONS,THE KNOWLEDGE ACADEMY LIMITED,442609,1788,GB970667487
BIS,Met Office,2020-05-14,11 SERVICES,CORPORATE,THE PURPLE COMPANY (UK) LTD,442331,5980,818216631
BIS,Met Office,2020-05-14,11 SERVICES,GOVERNMENT SERVICES,TREAD LIGHT LTD,442358,2017.68,273398372
BIS,Met Office,2020-05-13,11 SERVICES,GOVERNMENT SERVICES,UKRI,440679,62500,GB287461957
BIS,Met Office,2020-05-07,11 SERVICES,SCIENCE,UNIVERSITATBERN,19994,9592.07,280255
BIS,Met Office,2020-05-21,11 SERVICES,GOVERNMENT SERVICES,UNIVERSITY OF EDINBURGH,442143,10000,592950700
BIS,Met Office,2020-05-21,11 SERVICES,GOVERNMENT SERVICES,UNIVERSITY OF EDINBURGH,442137,120000,592950700
BIS,Met Office,2020-05-28,11 SERVICES,OPERATIONS,UNIVERSITY OF EXETER,442668,500,142047795
BIS,Met Office,2020-05-14,11 SERVICES,GOVERNMENT SERVICES,University Of Leeds,442294,4171.36,613451470
BIS,Met Office,2020-05-28,11 SERVICES,SCIENCE,University Of Leeds,442317,6266.79,613451470
BIS,Met Office,2020-05-14,11 SERVICES,GOVERNMENT SERVICES,University Of Leeds,442308,34285,613451470
BIS,Met Office,2020-05-14,11 SERVICES,GOVERNMENT SERVICES,University Of Leeds,442307,47970.2,613451470
BIS,Met Office,2020-05-14,11 SERVICES,GOVERNMENT SERVICES,University Of Leeds,442309,160000,613451470
BIS,Met Office,2020-05-21,11 SERVICES,GOVERNMENT SERVICES,University Of Reading,441043,26000,200012659
BIS,Met Office,2020-05-28,11 SERVICES,GOVERNMENT SERVICES,University Of Reading,440325,32152.08,200012659
BIS,Met Office,2020-05-28,11 SERVICES,GOVERNMENT SERVICES,University Of Reading,440020,196985.1,200012659
BIS,Met Office,2020-05-28,11 SERVICES,GOVERNMENT SERVICES,University Of Reading,440018,298094.95,200012659
BIS,Met Office,2020-05-28,11 SERVICES,GOVERNMENT SERVICES,University Of Reading,440017,313128.23,200012659
BIS,Met Office,2020-05-21,11 SERVICES,OPERATIONS,VOLKSWAGEN GROUP LEASING,436349,-2464.72,BG745963883
BIS,Met Office,2020-05-21,11 SERVICES,OPERATIONS,VOLKSWAGEN GROUP LEASING,435267,-2289.14,BG745963883
BIS,Met Office,2020-05-21,11 SERVICES,OPERATIONS,VOLKSWAGEN GROUP LEASING,436350,-498.06,BG745963883
BIS,Met Office,2020-05-21,11 SERVICES,OPERATIONS,VOLKSWAGEN GROUP LEASING,436367,-373.38,BG745963883
BIS,Met Office,2020-05-21,11 SERVICES,OPERATIONS,VOLKSWAGEN GROUP LEASING,442454,1000,BG745963883
BIS,Met Office,2020-05-21,11 SERVICES,OPERATIONS,VOLKSWAGEN GROUP LEASING,442455,1000,BG745963883
BIS,Met Office,2020-05-21,11 SERVICES,OPERATIONS,VOLKSWAGEN GROUP LEASING,439097,4142.14,BG745963883
BIS,Met Office,2020-05-07,11 SERVICES,GOVERNMENT SERVICES,WALNUT UNLIMITED LIMITED,441854,2825,648857968
BIS,Met Office,2020-05-07,11 SERVICES,CHIEF FINANCIAL OFFICER,WEBEX COMMUNICATIONS UK LTD,441866,252.22,815974302
BIS,Met Office,2020-05-07,11 SERVICES,TECHNOLOGY,WIREFAST LTD,442038,41.21,749536001
BIS,Met Office,2020-05-07,11 SERVICES,TECHNOLOGY,WIREFAST LTD,442037,3822.33,749536001
BIS,Met Office,2020-05-20,11 SERVICES,GOVERNMENT SERVICES,World Meteorological Organization,442400,14286,-
BIS,Met Office,2020-05-20,11 SERVICES,GOVERNMENT SERVICES,World Meteorological Organization,442399,214232,-
BIS,Met Office,2020-05-07,11 SERVICES,GOVERNMENT SERVICES,WORLD VISION UK,442062,73638,GB819096309
BIS,Met Office,2020-05-07,11 SERVICES,OPERATIONS,WORLDPAY LTD,442044,20.85,991280207
BIS,Met Office,2020-05-07,11 SERVICES,CHIEF FINANCIAL OFFICER,XPEDITE SYSTEMS (UK) LTD,442061,100,599016994
BIS,Met Office,2020-05-07,11 SERVICES,CHIEF FINANCIAL OFFICER,XUPER,441820,225,316677090
BIS,Met Office,2020-05-07,11 SERVICES,CHIEF FINANCIAL OFFICER,XUPER,441820,450,316677090
BIS,Met Office,2020-05-07,11 SERVICES,CHIEF FINANCIAL OFFICER,XUPER,441820,495,316677090
BIS,Met Office,2020-05-07,11 SERVICES,CHIEF FINANCIAL OFFICER,XUPER,441820,660,316677090
BIS,Met Office,2020-05-07,11 SERVICES,CHIEF FINANCIAL OFFICER,XUPER,441820,720,316677090
BIS,Met Office,2020-05-07,11 SERVICES,CHIEF FINANCIAL OFFICER,XUPER,441820,720,316677090
BIS,Met Office,2020-05-07,11 SERVICES,CHIEF FINANCIAL OFFICER,XUPER,441820,720,316677090
BIS,Met Office,2020-05-07,11 SERVICES,CHIEF FINANCIAL OFFICER,XUPER,441820,720,316677090
BIS,Met Office,2020-05-07,11 SERVICES,CHIEF FINANCIAL OFFICER,XUPER,441820,720,316677090
BIS,Met Office,2020-05-07,11 SERVICES,CHIEF FINANCIAL OFFICER,XUPER,441820,720,316677090
BIS,Met Office,2020-05-07,11 SERVICES,CHIEF FINANCIAL OFFICER,XUPER,441820,825,316677090
BIS,Met Office,2020-05-07,11 SERVICES,CHIEF FINANCIAL OFFICER,XUPER,441820,4707.75,316677090
BIS,Met Office,2020-05-21,11 SERVICES,OPERATIONS,YOUNG CALIBRATION LIMITED,442576,10,673900720
BIS,Met Office,2020-05-28,12 INTERNATIONAL,OPERATIONS,APPLIED SATELLITE TECHNOLOGY SYSTEMS LTD,442661,34.43,720108683
BIS,Met Office,2020-05-28,12 INTERNATIONAL,OPERATIONS,FCO SERVICES,441586,2661.13,888848729
BIS,Met Office,2020-05-14,12 INTERNATIONAL,OPERATIONS,HOWTOMOODLE LTD,442335,291.67,GB 8337554 13
BIS,Met Office,2020-05-06,12 INTERNATIONAL,OPERATIONS,REDACTED � PERSONAL DATA,9799,2815.56,-
BIS,Met Office,2020-05-13,12 INTERNATIONAL,OPERATIONS,SAGIM,21457,612.88,FR03394538573
BIS,Met Office,2020-05-14,12 INTERNATIONAL,OPERATIONS,SWANTECH LOGISTICS LTD,440265,250,769332401
BIS,Met Office,2020-05-07,12 INTERNATIONAL,OPERATIONS,TRIPOS CONSULTANTS,442008,2142.4,610652671
BIS,Met Office,2020-05-07,13 MISCELLANEOUS,SCIENCE,AB MULTIMEDIA LTD,442066,80,849333502
BIS,Met Office,2020-05-07,13 MISCELLANEOUS,SCIENCE,AB MULTIMEDIA LTD,442065,300,849333502
BIS,Met Office,2020-05-07,13 MISCELLANEOUS,SCIENCE,AB MULTIMEDIA LTD,442064,500,849333502
BIS,Met Office,2020-05-07,13 MISCELLANEOUS,CHIEF FINANCIAL OFFICER,ANTRIM HILLS SPRING WATER CO LTD,442026,27,517173455
BIS,Met Office,2020-05-14,13 MISCELLANEOUS,CHIEF FINANCIAL OFFICER,ANTRIM HILLS SPRING WATER CO LTD,442161,27,517173455
BIS,Met Office,2020-05-07,13 MISCELLANEOUS,CHIEF FINANCIAL OFFICER,ARTHUR J. GALLAGHER INSURANCE BROKERS LIMITED,441858,1654.63,GB484746209
BIS,Met Office,2020-05-14,13 MISCELLANEOUS,CORPORATE,ASSOCIATION OF CHIEF EXECUTIVES,439879,650,N/A
BIS,Met Office,2020-05-21,13 MISCELLANEOUS,CHIEF FINANCIAL OFFICER,CANON UK LTD,442330,6032.05,523797128
BIS,Met Office,2020-05-21,13 MISCELLANEOUS,CHIEF FINANCIAL OFFICER,CBRE,442390,112.79,863613615
BIS,Met Office,2020-05-13,13 MISCELLANEOUS,CHIEF FINANCIAL OFFICER,DEMSTAR BUSINESS SOLUTIONS LTD,21440,65.36,10156145J
BIS,Met Office,2020-05-21,13 MISCELLANEOUS,CORPORATE,EXETER CHAMBER OF COMMERCE AND INDUSTRY,441384,680,-
BIS,Met Office,2020-05-28,13 MISCELLANEOUS,CHIEF FINANCIAL OFFICER,HEALIX INSURANCE SERVICES LTD,442752,131.89,-
BIS,Met Office,2020-05-28,13 MISCELLANEOUS,CHIEF FINANCIAL OFFICER,HEALIX INSURANCE SERVICES LTD,442752,1188.72,-
BIS,Met Office,2020-05-28,13 MISCELLANEOUS,CHIEF FINANCIAL OFFICER,HEALIX INTERNATIONAL,442753,33.6,127632909
BIS,Met Office,2020-05-28,13 MISCELLANEOUS,CHIEF FINANCIAL OFFICER,HEALIX INTERNATIONAL,442753,313.2,127632909
BIS,Met Office,2020-05-07,13 MISCELLANEOUS,CHIEF FINANCIAL OFFICER,POSTURITE (UK) LTD,441847,13.62,583565114
BIS,Met Office,2020-05-07,13 MISCELLANEOUS,CHIEF FINANCIAL OFFICER,POSTURITE (UK) LTD,441993,13.99,583565114
BIS,Met Office,2020-05-14,13 MISCELLANEOUS,CHIEF FINANCIAL OFFICER,POSTURITE (UK) LTD,442367,27.61,583565114
BIS,Met Office,2020-05-14,13 MISCELLANEOUS,CHIEF FINANCIAL OFFICER,POSTURITE (UK) LTD,442291,27.98,583565114
BIS,Met Office,2020-05-07,13 MISCELLANEOUS,CHIEF FINANCIAL OFFICER,POSTURITE (UK) LTD,441824,43.34,583565114
BIS,Met Office,2020-05-28,13 MISCELLANEOUS,CHIEF FINANCIAL OFFICER,POSTURITE (UK) LTD,442649,61.38,583565114
BIS,Met Office,2020-05-21,13 MISCELLANEOUS,CHIEF FINANCIAL OFFICER,POSTURITE (UK) LTD,442393,108.47,583565114
BIS,Met Office,2020-05-07,13 MISCELLANEOUS,CHIEF FINANCIAL OFFICER,POSTURITE (UK) LTD,441991,170.47,583565114
BIS,Met Office,2020-05-07,13 MISCELLANEOUS,CHIEF FINANCIAL OFFICER,POSTURITE (UK) LTD,441992,170.47,583565114
BIS,Met Office,2020-05-07,13 MISCELLANEOUS,CHIEF FINANCIAL OFFICER,POSTURITE (UK) LTD,441994,170.47,583565114
BIS,Met Office,2020-05-07,13 MISCELLANEOUS,CHIEF FINANCIAL OFFICER,POSTURITE (UK) LTD,441995,170.47,583565114
BIS,Met Office,2020-05-07,13 MISCELLANEOUS,CHIEF FINANCIAL OFFICER,POSTURITE (UK) LTD,441996,170.47,583565114
BIS,Met Office,2020-05-07,13 MISCELLANEOUS,CHIEF FINANCIAL OFFICER,POSTURITE (UK) LTD,442003,170.47,583565114
BIS,Met Office,2020-05-14,13 MISCELLANEOUS,CHIEF FINANCIAL OFFICER,POSTURITE (UK) LTD,442290,170.47,583565114
BIS,Met Office,2020-05-14,13 MISCELLANEOUS,CHIEF FINANCIAL OFFICER,POSTURITE (UK) LTD,442292,170.47,583565114
BIS,Met Office,2020-05-14,13 MISCELLANEOUS,CHIEF FINANCIAL OFFICER,POSTURITE (UK) LTD,442293,170.47,583565114
BIS,Met Office,2020-05-14,13 MISCELLANEOUS,CHIEF FINANCIAL OFFICER,POSTURITE (UK) LTD,442372,170.47,583565114
BIS,Met Office,2020-05-14,13 MISCELLANEOUS,CHIEF FINANCIAL OFFICER,POSTURITE (UK) LTD,442373,170.47,583565114
BIS,Met Office,2020-05-21,13 MISCELLANEOUS,CHIEF FINANCIAL OFFICER,POSTURITE (UK) LTD,442394,170.47,583565114
BIS,Met Office,2020-05-21,13 MISCELLANEOUS,CHIEF FINANCIAL OFFICER,POSTURITE (UK) LTD,442591,170.47,583565114
BIS,Met Office,2020-05-28,13 MISCELLANEOUS,CORPORATE,Royal Meteorological Society,442607,5000,-
BIS,Met Office,2020-05-07,13 MISCELLANEOUS,CHIEF FINANCIAL OFFICER,SELECTA UK LTD,442025,138.05,581705924
BIS,Met Office,2020-05-14,13 MISCELLANEOUS,GOVERNMENT SERVICES,SOUTRON LIMITED,442306,308.4,828299582
BIS,Met Office,2020-05-21,13 MISCELLANEOUS,SCIENCE,University Of Reading,441757,-333.33,200012659
BIS,Met Office,2020-05-28,CYCLESCHEME,OTHER,CYCLESCHEME LTD,441761,644.98,850403556
BIS,Met Office,2020-05-28,FIXTURE & FITTINGS,CHIEF FINANCIAL OFFICER,DHA BOWEN,442364,1125,-
BIS,Met Office,2020-05-14,FIXTURE & FITTINGS,CHIEF FINANCIAL OFFICER,J & B ELECTRICAL CONTRACTORS LTD,442152,1200,705611953
BIS,Met Office,2020-05-28,INFORMATION TECHNOLOGY,STRATEGIC INVESTMENT,Campbell Scientific Ltd,442666,110617.5,428453933
BIS,Met Office,2020-05-07,INFORMATION TECHNOLOGY,TECHNOLOGY,COMPUTACENTER (UK) LTD,442000,1695.39,490334648
BIS,Met Office,2020-05-28,INFORMATION TECHNOLOGY,TECHNOLOGY,COMPUTACENTER (UK) LTD,442599,780599,490334648
BIS,Met Office,2020-05-07,INFORMATION TECHNOLOGY,OPERATIONS,M C ENGINEERING SERVICES,442001,76,813172066
BIS,Met Office,2020-05-07,INFORMATION TECHNOLOGY,OPERATIONS,M C ENGINEERING SERVICES,442001,745.25,813172066
BIS,Met Office,2020-05-07,INFORMATION TECHNOLOGY,OPERATIONS,M C ENGINEERING SERVICES,442001,745.25,813172066
BIS,Met Office,2020-05-07,INFORMATION TECHNOLOGY,OPERATIONS,M C ENGINEERING SERVICES,442001,1603,813172066
BIS,Met Office,2020-05-07,INFORMATION TECHNOLOGY,OPERATIONS,M C ENGINEERING SERVICES,442001,1603,813172066
BIS,Met Office,2020-05-07,INFORMATION TECHNOLOGY,TECHNOLOGY,SOFTWARE BOX LIMITED,440412,510,734245248
BIS,Met Office,2020-05-07,INFORMATION TECHNOLOGY,TECHNOLOGY,SOFTWARE BOX LIMITED,440412,1691.5,734245248
BIS,Met Office,2020-05-07,INFORMATION TECHNOLOGY,TECHNOLOGY,SOFTWARE BOX LIMITED,441590,8900,734245248
BIS,Met Office,2020-05-07,INFORMATION TECHNOLOGY,TECHNOLOGY,SOFTWARE BOX LIMITED,440412,14280,734245248
BIS,Met Office,2020-05-14,INFORMATION TECHNOLOGY,OPERATIONS,ST CROSS ELECTRONICS,440322,2275.35,330158101
BIS,Met Office,2020-05-28,PLANT AND EQUIPMENT,CHIEF FINANCIAL OFFICER,CBRE MANAGED SERVICES LTD,442756,28572.33,853936883
BIS,Met Office,2020-05-28,PLANT AND EQUIPMENT,CHIEF FINANCIAL OFFICER,CBRE MANAGED SERVICES LTD,442756,28572.33,853936883
BIS,Met Office,2020-05-28,PLANT AND EQUIPMENT,CHIEF FINANCIAL OFFICER,CBRE MANAGED SERVICES LTD,442756,28572.34,853936883
BIS,Met Office,2020-05-14,PLANT AND EQUIPMENT,OPERATIONS,FLUKE UK LTD,441784,10800,625938805
BIS,Met Office,2020-05-14,PLANT AND EQUIPMENT,OPERATIONS,FLUKE UK LTD,441784,13440,625938805
BIS,Met Office,2020-05-14,PLANT AND EQUIPMENT,OPERATIONS,FLUKE UK LTD,441784,27470,625938805
BIS,Met Office,2020-05-14,PLANT AND EQUIPMENT,OPERATIONS,FLUKE UK LTD,441784,30930,625938805
BIS,Met Office,2020-05-14,PLANT AND EQUIPMENT,OPERATIONS,FLUKE UK LTD,441769,39940,625938805
BIS,Met Office,2020-05-07,PLANT AND EQUIPMENT,CHIEF FINANCIAL OFFICER,Stewart Morris Partnership Ltd,442029,2917.5,687720886
BIS,Met Office,2020-05-27,STOCK,OPERATIONS,TOTEX CORPORATION,441777,0,-
BIS,Met Office,2020-05-27,STOCK,OPERATIONS,TOTEX CORPORATION,441777,0,-
BIS,Met Office,2020-05-27,STOCK,OPERATIONS,TOTEX CORPORATION,441777,0,-
BIS,Met Office,2020-05-27,STOCK,OPERATIONS,TOTEX CORPORATION,441777,0,-
BIS,Met Office,2020-05-27,STOCK,OPERATIONS,TOTEX CORPORATION,441777,0,-
BIS,Met Office,2020-05-27,STOCK,OPERATIONS,TOTEX CORPORATION,441777,0,-
BIS,Met Office,2020-05-27,STOCK,OPERATIONS,TOTEX CORPORATION,441777,819,-
BIS,Met Office,2020-05-27,STOCK,OPERATIONS,TOTEX CORPORATION,441777,3484.8,-
BIS,Met Office,2020-05-27,STOCK,OPERATIONS,TOTEX CORPORATION,441777,4200,-
BIS,Met Office,2020-05-27,STOCK,OPERATIONS,TOTEX CORPORATION,441777,7065,-
BIS,Met Office,2020-05-27,STOCK,OPERATIONS,TOTEX CORPORATION,441777,15724.8,-
BIS,Met Office,2020-05-27,STOCK,OPERATIONS,TOTEX CORPORATION,441777,18111.6,-
BIS,Met Office,2020-05-06,STOCK,OPERATIONS,VAISALA OYJ,21298,0,FI01244162
BIS,Met Office,2020-05-06,STOCK,OPERATIONS,VAISALA OYJ,21298,6782.4,FI01244162
BEIS,,,,,,,,
BEIS,,,,,,,,
BEIS,,,,,,,,
BEIS,,,,,,,,
BEIS,,,,,,,,
BEIS,,,,,,,,
BEIS,,,,,,,,
BEIS,,,,,,,,
BEIS,,,,,,,,
BEIS,,,,,,,,
BEIS,,,,,,,,
BEIS,,,,,,,,
BEIS,,,,,,,,
BEIS,,,,,,,,
BEIS,,,,,,,,
BEIS,,,,,,,,
BEIS,,,,,,,,
BEIS,,,,,,,,
BEIS,,,,,,,,
BEIS,,,,,,,,
BEIS,,,,,,,,
BEIS,,,,,,,,
BEIS,,,,,,,,
BEIS,,,,,,,,
BEIS,,,,,,,,
BEIS,,,,,,,,
BEIS,,,,,,,,
BEIS,,,,,,,,
BEIS,,,,,,,,
BEIS,,,,,,,,
BEIS,,,,,,,,
BEIS,,,,,,,,
BEIS,,,,,,,,
BEIS,,,,,,,,
BEIS,,,,,,,,
BEIS,,,,,,,,
BEIS,,,,,,,,
BEIS,,,,,,,,
BEIS,,,,,,,,
BEIS,,,,,,,,
BEIS,,,,,,,,
BEIS,,,,,,,,
BEIS,,,,,,,,
BEIS,,,,,,,,
BEIS,,,,,,,,
BEIS,,,,,,,,
BEIS,,,,,,,,
BEIS,,,,,,,,
BEIS,,,,,,,,
BEIS,,,,,,,,
BEIS,,,,,,,,
BEIS,,,,,,,,
BEIS,,,,,,,,
BEIS,,,,,,,,
BEIS,,,,,,,,
BEIS,,,,,,,,
BEIS,,,,,,,,
BEIS,,,,,,,,
BEIS,,,,,,,,
BEIS,,,,,,,,
BEIS,,,,,,,,
BEIS,,,,,,,,
BEIS,,,,,,,,
BEIS,,,,,,,,
BEIS,,,,,,,,
BEIS,,,,,,,,
BEIS,,,,,,,,
BEIS,,,,,,,,
BEIS,,,,,,,,
BEIS,,,,,,,,
BEIS,,,,,,,,
BEIS,,,,,,,,
BEIS,,,,,,,,
BEIS,,,,,,,,
BEIS,,,,,,,,
BEIS,,,,,,,,
BEIS,,,,,,,,
BEIS,,,,,,,,
BEIS,,,,,,,,
BEIS,,,,,,,,
BEIS,,,,,,,,
BEIS,,,,,,,,
BEIS,,,,,,,,
BEIS,,,,,,,,
BEIS,,,,,,,,
BEIS,,,,,,,,
BEIS,,,,,,,,
BEIS,,,,,,,,
BEIS,,,,,,,,
BEIS,,,,,,,,
BEIS,,,,,,,,
BEIS,,,,,,,,
BEIS,,,,,,,,
BEIS,,,,,,,,
BEIS,,,,,,,,
BEIS,,,,,,,,
BEIS,,,,,,,,
BEIS,,,,,,,,
BEIS,,,,,,,,
BEIS,,,,,,,,
BEIS,,,,,,,,
BEIS,,,,,,,,
BEIS,,,,,,,,
BEIS,,,,,,,,
BEIS,,,,,,,,
BEIS,,,,,,,,
BEIS,,,,,,,,
BEIS,,,,,,,,
BEIS,,,,,,,,
BEIS,,,,,,,,
BEIS,,,,,,,,
BEIS,,,,,,,,
BEIS,,,,,,,,
BEIS,,,,,,,,
BEIS,,,,,,,,
BEIS,,,,,,,,
BEIS,,,,,,,,
BEIS,,,,,,,,
BEIS,,,,,,,,
BEIS,,,,,,,,
BEIS,,,,,,,,
BEIS,,,,,,,,
BEIS,,,,,,,,
BEIS,,,,,,,,
BEIS,,,,,,,,
BEIS,,,,,,,,
BEIS,,,,,,,,
BEIS,,,,,,,,
BEIS,,,,,,,,
BEIS,,,,,,,,
BEIS,,,,,,,,
BEIS,,,,,,,,
BEIS,,,,,,,,
BEIS,,,,,,,,
BEIS,,,,,,,,
BEIS,,,,,,,,
BEIS,,,,,,,,
BEIS,,,,,,,,
BEIS,,,,,,,,
BEIS,,,,,,,,
BEIS,,,,,,,,
BEIS,,,,,,,,
BEIS,,,,,,,,
BEIS,,,,,,,,
BEIS,,,,,,,,
BEIS,,,,,,,,
BEIS,,,,,,,,
